Workbook

Sheet DATA (hidden)
M1: 1 | N1: Select your first remittance date > | W1: 1 | X1: 2 | Y1: 3 | Z1: 4 | AA1: 5 | AB1: =+AA1+1 -> 6 | AC1: =+AB1+1 -> 7 | AD1: 8 | AE1: 9 | AF1: 10 | AG1: 11 | AH1: 12 | AQ1: 1 | AV1: 1 | AW1: =+AV1+1 -> 2 | AX1: =+AW1+1 -> 3 | AY1: 4 | AZ1: 5 | BA1: 6 | BB1: =+BA1+1 -> 7 | BC1: =+BB1+1 -> 8 | BD1: =+BC1+1 -> 9 | BE1: =+BD1+1 -> 10 | BF1: =+BE1+1 -> 11 | BG1: =+BF1+1 -> 12 | BH1: =+BG1+1 -> 13 | BI1: =+BH1+1 -> 14 | BJ1: =+BI1+1 -> 15 | BK1: =+BJ1+1 -> 16 | BL1: =+BK1+1 -> 17 | BM1: =+BL1+1 -> 18 | BN1: =+BM1+1 -> 19 | BO1: =+BN1+1 -> 20 | BP1: =+BO1+1 -> 21 | BQ1: =+BP1+1 -> 22 | BR1: =+BQ1+1 -> 23 | BS1: =+BR1+1 -> 24 | BT1: =+BS1+1 -> 25 | BU1: =+BT1+1 -> 26 | BV1: =+BU1+1 -> 27 | BW1: =+BV1+1 -> 28 | BX1: =+BW1+1 -> 29 | BY1: =+BX1+1 -> 30 | BZ1: =+BY1+1 -> 31 | CA1: =+BZ1+1 -> 32 | CB1: =+CA1+1 -> 33 | CC1: =+CB1+1 -> 34 | CD1: =+CC1+1 -> 35 | CE1: =+CD1+1 -> 36 | CF1: =+CE1+1 -> 37 | CG1: =+CF1+1 -> 38 | CH1: =+CG1+1 -> 39 | CI1: =+CH1+1 -> 40 | CJ1: =+CI1+1 -> 41 | CK1: =+CJ1+1 -> 42 | CL1: =+CK1+1 -> 43 | CM1: =+CL1+1 -> 44 | CN1: =+CM1+1 -> 45 | CO1: =+CN1+1 -> 46 | CP1: =+CO1+1 -> 47 | CQ1: =+CP1+1 -> 48 | CR1: =+CQ1+1 -> 49 | CS1: =+CR1+1 -> 50 | CT1: =+CS1+1 -> 51 | CU1: =+CT1+1 -> 52 | CV1: =+CU1+1 -> 53 | CW1: =+CV1+1 -> 54 | CX1: =+CW1+1 -> 55 | CY1: =+CX1+1 -> 56 | CZ1: =+CY1+1 -> 57 | DA1: =+CZ1+1 -> 58 | DB1: =+DA1+1 -> 59 | DC1: =+DB1+1 -> 60 | DD1: =+DC1+1 -> 61 | DE1: =+DD1+1 -> 62 | DF1: =+DE1+1 -> 63 | DG1: =+DF1+1 -> 64 | DH1: =+DG1+1 -> 65 | DI1: =+DH1+1 -> 66 | DJ1: =+DI1+1 -> 67 | DK1: =+DJ1+1 -> 68 | DL1: =+DK1+1 -> 69 | DM1: =+DL1+1 -> 70 | DN1: =+DM1+1 -> 71 | DO1: =+DN1+1 -> 72 | DP1: =+DO1+1 -> 73 | DQ1: =+DP1+1 -> 74 | DR1: =+DQ1+1 -> 75 | DS1: =+DR1+1 -> 76 | DT1: =+DS1+1 -> 77 | DU1: =+DT1+1 -> 78 | DV1: =+DU1+1 -> 79 | DW1: =+DV1+1 -> 80 | DX1: =+DW1+1 -> 81 | DY1: =+DX1+1 -> 82 | DZ1: =+DY1+1 -> 83 | EA1: =+DZ1+1 -> 84 | EB1: =+EA1+1 -> 85 | EC1: =+EB1+1 -> 86 | ED1: =+EC1+1 -> 87 | EE1: =+ED1+1 -> 88 | EF1: =+EE1+1 -> 89 | EG1: =+EF1+1 -> 90 | EH1: =+EG1+1 -> 91 | EI1: =+EH1+1 -> 92 | EJ1: =+EI1+1 -> 93 | EK1: =+EJ1+1 -> 94 | EL1: =+EK1+1 -> 95 | EM1: =+EL1+1 -> 96 | EN1: =+EM1+1 -> 97 | EO1: =+EN1+1 -> 98 | EP1: =+EO1+1 -> 99 | EQ1: =+EP1+1 -> 100 | ER1: =+EQ1+1 -> 101 | ES1: =+ER1+1 -> 102 | ET1: =+ES1+1 -> 103 | EU1: =+ET1+1 -> 104 | EV1: =+EU1+1 -> 105 | EW1: =+EV1+1 -> 106 | EX1: =+EW1+1 -> 107 | EY1: =+EX1+1 -> 108 | EZ1: =+EY1+1 -> 109 | FA1: =+EZ1+1 -> 110 | FB1: =+FA1+1 -> 111 | FC1: =+FB1+1 -> 112 | FD1: =+FC1+1 -> 113 | FE1: =+FD1+1 -> 114 | FF1: =+FE1+1 -> 115 | FG1: =+FF1+1 -> 116 | FH1: =+FG1+1 -> 117 | FI1: =+FH1+1 -> 118 | FJ1: =+FI1+1 -> 119 | FK1: =+FJ1+1 -> 120 | FL1: =+FK1+1 -> 121 | FM1: =+FL1+1 -> 122 | FN1: =+FM1+1 -> 123 | FO1: =+FN1+1 -> 124 | FP1: =+FO1+1 -> 125
B2: Mun tax Due Dates | C2: https://www.gov.mb.ca/asset_library/en/newslinks/2021/06/BKG-Education_Property_Tax_Rebate-FIN.pdf | AU2: Source: | AV2: \\ME\edu\114eduWGP\Edusfb\Frame\SpecLevy\Form2\2024\LINKS_MUN_FORM2 - 2024.xlsm
AU3: NOTE: Source file should be updated with budget year numbers, and renamed to corresponding year
AQ4: English | BA4: Special Levy
C5: 1 | D5: Press arrow for your School Division > | E5: No. | G5: DIVNUM_MUN | H5: MUN | I5: DUE | AQ5: French | AX5: Special Levy | AY5: Special Levy | AZ5: Special Levy | BA5: Before | BB5: Previous Year | BG5: Total
A6: DIVNUM | B6: 1 | C6: 2 | D6: BEAUTIFUL PLAINS | E6: BE | F6: =COUNTIF($G$6:$G$273,E6) -> 10 | G6: BE | H6: rm of elton | I6: Oct 29 | K6: DATENUM | L6: 2 | M6: 2 | N6: Provincial Funding | W6: =+'DATA ENTRY'!G33 -> REMITTANCE 1 | X6: =+'DATA ENTRY'!H33 -> REMITTANCE 2 | Y6: =+'DATA ENTRY'!I33 -> REMITTANCE 3 | Z6: =+'DATA ENTRY'!J33 -> REMITTANCE 4 | AA6: =+'DATA ENTRY'!K33 -> REMITTANCE 5 | AB6: =+'DATA ENTRY'!L33 -> REMITTANCE 6 | AC6: =+'DATA ENTRY'!M33 -> REMITTANCE 7 | AD6: =+'DATA ENTRY'!N33 -> REMITTANCE 8 | AE6: =+'DATA ENTRY'!O33 -> REMITTANCE 9 | AF6: =+'DATA ENTRY'!P33 -> REMITTANCE 10 | AG6: =+'DATA ENTRY'!Q33 -> REMITTANCE 11 | AH6: =+'DATA ENTRY'!R33 -> REMITTANCE 12 | AI6: =IF(ISERROR(HLOOKUP(AI7,W1:AH7,3,0)=TRUE),0,(HLOOKUP(AI7,W1:AH7,3,0))) -> 0 | AV6: 80 | AX6: for the SD | AY6: for DSFM | AZ6: Adj for DSFM | BA6: TIG & PTOG | BB6: TIG ADJ | BC6: TIG | BD6: TIG by divison | BE6: PTOG by division | BF6: DSFM PTOG | BG6: Special Levy | BI6: Municipalities | BJ6: NO DSFM
C7: 3 | D7: BORDER LAND | E7: BO | F7: =COUNTIF($G$6:$G$273,E7) -> 9 | G7: BE | H7: municipality of glenella-lansdowne | I7: Oct 31 | M7: 3 | N7: Jul 31 | W7: =+'DATA ENTRY'!G34 -> 0 | X7: =+'DATA ENTRY'!H34 -> 0 | Y7: =+'DATA ENTRY'!I34 -> 0 | Z7: =+'DATA ENTRY'!J34 -> 0 | AA7: =+'DATA ENTRY'!K34 -> 0 | AB7: =+'DATA ENTRY'!L34 -> 0 | AC7: =+'DATA ENTRY'!M34 -> 0 | AD7: =+'DATA ENTRY'!N34 -> 0 | AE7: =+'DATA ENTRY'!O34 -> 0 | AF7: =+'DATA ENTRY'!P34 -> 0 | AG7: =+'DATA ENTRY'!Q34 -> 0 | AH7: =+'DATA ENTRY'!R34 -> 0 | AI7: =+MAX(AI8:AI33) -> 0 | AN7: 1 | AV7: CO. | AW7: DIVISION/DISTRICT | AX7: SPLEVDIV | AY7: SPLEVDSFM | AZ7: SLADJLT | BA7: G17 | BB7: G18 | BC7: TIGSL2 | BD7: TIG | BE7: TOG | BG7: SPLEVLT | BI7: 1 | BJ7: =+BI7+1 -> 2 | BK7: =+BJ7+1 -> 3 | BL7: 4 | BM7: 5 | BN7: 6 | BO7: 7 | BP7: 8 | BQ7: 9 | BR7: 10 | BS7: 11 | BT7: 12 | BU7: 13 | BV7: 14 | BW7: 15 | BX7: 16 | BY7: 17 | BZ7: 18 | CA7: 19 | CB7: 20 | CC7: 21 | CD7: 22 | CE7: 23 | CF7: 24 | CG7: 25 | CH7: 26 | CI7: 27 | CJ7: 28 | CK7: 29 | CL7: 30 | CM7: 31 | CN7: 32 | CO7: 33 | CP7: 34 | CQ7: 35 | CR7: 36 | CS7: 37 | CT7: 38 | CU7: 39 | CV7: 40 | CW7: 41 | CX7: 42 | CY7: 43 | CZ7: 44 | DA7: 45 | DB7: 46 | DC7: 47 | DD7: 48 | DE7: 49 | DF7: 50 | DG7: 51 | DH7: 52 | DI7: 53 | DJ7: 54 | DK7: 55 | DL7: 1 | DM7: =+DL7+1 -> 2 | DN7: =+DM7+1 -> 3 | DO7: 4 | DP7: 5 | DQ7: 6 | DR7: 7 | DS7: 8 | DT7: 9 | DU7: 10 | DV7: 11 | DW7: 12 | DX7: 13 | DY7: 14 | DZ7: 15 | EA7: 16 | EB7: 17 | EC7: 18 | ED7: 19 | EE7: 20 | EF7: 21 | EG7: 22 | EH7: 23 | EI7: =+EH7+1 -> 24 | EJ7: 25 | EK7: 26 | EL7: 27 | EM7: 28 | EN7: 29 | EO7: 30 | EP7: 31 | EQ7: 32 | ER7: 33 | ES7: 34 | ET7: 35 | EU7: 36 | EV7: 37 | EW7: 38 | EX7: 39 | EY7: 40 | EZ7: 41 | FA7: 42 | FB7: 43 | FC7: 44 | FD7: 45 | FE7: 46 | FF7: 47 | FG7: 48 | FH7: 49 | FI7: 50 | FJ7: 51 | FK7: 52 | FL7: 53 | FM7: 54 | FN7: 55 | FO7: Ratios Page | FP7: PTOG DIV | FR7: DSFM | FS7: Control
A8: DIVNUM2 | B8: =VLOOKUP(B6,C1:E57,3) -> No. | C8: 4 | D8: BRANDON | E8: BR | F8: 9 | G8: BE | H8: municipality of north cypress-langford | I8: Sep 30 | K8: DATENUM2 | L8: =IF(OR(DATENUM=1,DATENUM=2),"",VLOOKUP(L6,M1:N8,2)) ->  | M8: 4 | N8: Oct 31 | T8: 6 | V8: =+'DATA ENTRY'!A35 -> 0 | W8: =IF('DATA ENTRY'!G35="",0,1) -> 0 | X8: =IF('DATA ENTRY'!H35="",0,2) -> 0 | Y8: =IF('DATA ENTRY'!I35="",0,3) -> 0 | Z8: =IF('DATA ENTRY'!J35="",0,4) -> 0 | AA8: =IF('DATA ENTRY'!K35="",0,AA1) -> 0 | AB8: =IF('DATA ENTRY'!L35="",0,AB1) -> 0 | AC8: =IF('DATA ENTRY'!M35="",0,AC1) -> 0 | AD8: =IF('DATA ENTRY'!N35="",0,AD1) -> 0 | AE8: =IF('DATA ENTRY'!O35="",0,AE1) -> 0 | AF8: =IF('DATA ENTRY'!P35="",0,AF1) -> 0 | AG8: =IF('DATA ENTRY'!Q35="",0,AG1) -> 0 | AH8: =IF('DATA ENTRY'!R35="",0,AH1) -> 0 | AI8: =MAX(W8:AH8) -> 0 | AJ8: =HLOOKUP($AI$7,'DATA ENTRY'!$G$16:$R$60,T8,0) ->  | AK8: =+V8 -> 0 | AN8: =+AN7+1 -> 2 | FY8: TOTAL Sp. Levy - L
C9: 5 | D9: EVERGREEN | E9: EV | F9: 9 | G9: BE | H9: municipality of north norfolk | I9: Sep 30 | T9: =+T8+1 -> 7 | V9: =+'DATA ENTRY'!A36 -> 0 | W9: =IF('DATA ENTRY'!G36="",0,1) -> 0 | X9: =IF('DATA ENTRY'!H36="",0,2) -> 0 | Y9: =IF('DATA ENTRY'!I36="",0,3) -> 0 | Z9: =IF('DATA ENTRY'!J36="",0,4) -> 0 | AA9: =IF('DATA ENTRY'!K36="",0,AA1) -> 0 | AB9: =IF('DATA ENTRY'!L36="",0,AB1) -> 0 | AC9: =IF('DATA ENTRY'!M36="",0,AC1) -> 0 | AD9: =IF('DATA ENTRY'!N36="",0,AD1) -> 0 | AE9: =IF('DATA ENTRY'!O36="",0,AE1) -> 0 | AF9: =IF('DATA ENTRY'!P36="",0,AF1) -> 0 | AG9: =IF('DATA ENTRY'!Q36="",0,AG1) -> 0 | AH9: =IF('DATA ENTRY'!R36="",0,AH1) -> 0 | AI9: 0 | AJ9: =IF(HLOOKUP($AI$7,'DATA ENTRY'!$G$16:$R$60,T9,0)="",0,HLOOKUP($AI$7,'DATA ENTRY'!$G$16:$R$60,T9,0)) ->  | AK9: =+V9 -> 0 | AN9: =+AN8+1 -> 3 | AQ9: Important !!!!!!!!!: Before post the form 2, send the ratios for the current year to the Manitoba Tax Assistance Office - so they can send the right amount to the Divisions, for the split between the Divisions share and DSFM. | AU9: W/O | AV9: BE | AW9: BEAUTIFUL PLAINS | BA9: 11009365 | BC9: 252166 | BD9: 252166 | BE9: 596979 | BG9: 10160220 | BI9: RM OF ELTON (124) | BJ9: MUNICIPALITY OF GLENELLA-LANSDOWNE (142) | BK9: MUNICIPALITY OF NORTH CYPRESS-LANGFORD (155) | BL9: MUNICIPALITY OF NORTH NORFOLK (156) | BM9: RM OF MINTO-ODANAH (159) | BN9: RM OF ROSEDALE (170) | BO9: MUNICIPALITY OF GLENBORO-SOUTH CYPRESS (187) | BP9: RM OF VICTORIA (197) | BQ9: TOWN OF CARBERRY (407) | BR9: TOWN OF NEEPAWA (437) | BS9: 0 | BT9: 0 | BU9: 0 | BV9: 0 | BW9: 0 | BX9: 0 | BY9: 0 | BZ9: 0 | CA9: 0 | CB9: 0 | CC9: 0 | CD9: 0 | CE9: 0 | DL9: 146704 | DM9: 787349 | DN9: 5039340 | DO9: 8591 | DP9: 70903 | DQ9: 1090147 | DR9: 8409 | DS9: 3066 | DT9: 788171 | DU9: 2217541 | DV9: 0 | DW9: 0 | DX9: 0 | DY9: 0 | DZ9: 0 | EA9: 0 | EB9: 0 | EC9: 0 | ED9: 0 | EE9: 0 | EF9: 0 | EG9: 0 | FO9: =+BG9-SUM(DL9:FN9) -> -1 | FP9: 596979 | FQ9: =+AV9 -> BE | FR9: No DSFM | FS9: =IF(AND(FO9=0,FR9="No DSFM"),0,AY9-SUM(DL9:EH9)) -> -10160221 | FT9: =+AY9-SUM(DL9:EH9) -> -10160221 | FU9: =+AV9 -> BE | FY9: =SUM(AY9:AY45) -> 39175773
C10: 6 | D10: FLIN FLON | E10: FL | F10: 1 | G10: BE | H10: rm of minto-odanah | I10: Oct 29 | K10: DATE_ON_OFF | L10: 2 | T10: =+T9+1 -> 8 | U10: 1 | V10: =+'DATA ENTRY'!A37 ->  | W10: =IF('DATA ENTRY'!G37="",0,1) -> 0 | X10: =IF('DATA ENTRY'!H37="",0,2) -> 0 | Y10: =IF('DATA ENTRY'!I37="",0,3) -> 0 | Z10: =IF('DATA ENTRY'!J37="",0,4) -> 0 | AA10: =IF('DATA ENTRY'!K37="",0,AA1) -> 0 | AB10: =IF('DATA ENTRY'!L37="",0,AB1) -> 0 | AC10: =IF('DATA ENTRY'!M37="",0,AC1) -> 0 | AD10: =IF('DATA ENTRY'!N37="",0,AD1) -> 0 | AE10: =IF('DATA ENTRY'!O37="",0,AE1) -> 0 | AF10: =IF('DATA ENTRY'!P37="",0,AF1) -> 0 | AG10: =IF('DATA ENTRY'!Q37="",0,AG1) -> 0 | AH10: =IF('DATA ENTRY'!R37="",0,AH1) -> 0 | AI10: 0 | AJ10: =HLOOKUP($AI$7,'DATA ENTRY'!$G$16:$R$60,T10,0) ->  | AN10: 4 | AV10: BO | AW10: BORDER LAND | AX10: 19409211 | AY10: 100770 | AZ10: 0 | BA10: 19509981 | BB10: 0 | BC10: 2575999 | BD10: 2562850 | BE10: 1109209 | BF10: -12268 | BG10: 15837041 | BI10: RM OF DE SALABERRY (119) | BJ10: MUNICIPALITY OF EMERSON-FRANKLIN (127) | BK10: RM OF LA BROQUERIE (138) | BL10: RM OF MONTCALM (151) | BM10: RM OF MORRIS (152) | BN10: MUNICIPALITY OF RHINELAND (164) | BO10: TOWN OF ALTONA (400) | BP10: RM OF PINEY (610) | BQ10: RM OF STUARTBURN (612) | BR10: 0 | BS10: 0 | BT10: 0 | BU10: 0 | BV10: 0 | BW10: 0 | BX10: 0 | BY10: 0 | BZ10: 0 | CA10: 0 | CB10: 0 | CC10: 0 | CD10: 0 | CE10: 0 | DL10: 296496 | DM10: 3309489 | DN10: 224012 | DO10: 1859585 | DP10: 54615 | DQ10: 5236766 | DR10: 2833433 | DS10: 982143 | DT10: 1040502 | DU10: 0 | DV10: 0 | DW10: 0 | DX10: 0 | DY10: 0 | DZ10: 0 | EA10: 0 | EB10: 0 | EC10: 0 | ED10: 0 | EE10: 0 | EF10: 0 | EG10: 0 | FO10: =+BG10-SUM(DL10:FN10) -> 0 | FP10: 1109209 | FQ10: BO | FS10: -15736271 | FT10: -15736271 | FU10: BO
C11: 7 | D11: FORT LA BOSSE | E11: FO | F11: 7 | G11: BE | H11: rm of rosedale | I11: Oct 31 | T11: 9 | U11: =+U10+1 -> 2 | V11: =+'DATA ENTRY'!A38 ->  | W11: =IF('DATA ENTRY'!G38="",0,1) -> 0 | X11: =IF('DATA ENTRY'!H38="",0,2) -> 0 | Y11: =IF('DATA ENTRY'!I38="",0,3) -> 0 | Z11: =IF('DATA ENTRY'!J38="",0,4) -> 0 | AA11: =IF('DATA ENTRY'!K38="",0,AA1) -> 0 | AB11: =IF('DATA ENTRY'!L38="",0,AB1) -> 0 | AC11: =IF('DATA ENTRY'!M38="",0,AC1) -> 0 | AD11: =IF('DATA ENTRY'!N38="",0,AD1) -> 0 | AE11: =IF('DATA ENTRY'!O38="",0,AE1) -> 0 | AF11: =IF('DATA ENTRY'!P38="",0,AF1) -> 0 | AG11: =IF('DATA ENTRY'!Q38="",0,AG1) -> 0 | AH11: =IF('DATA ENTRY'!R38="",0,AH1) -> 0 | AI11: 0 | AJ11: =HLOOKUP($AI$7,'DATA ENTRY'!$G$16:$R$60,T11,0) ->  | AN11: 5 | AV11: BR | AW11: BRANDON | AX11: 53696983 | AY11: 770351 | AZ11: -368 | BA11: 54466966 | BB11: 0 | BC11: 924007 | BD11: 909001 | BE11: 2418624 | BF11: 97455 | BG11: 51026880 | BI11: RM OF CORNWALLIS (116) | BJ11: RM OF ELTON (124) | BK11: MUNICIPALITY OF NORTH CYPRESS-LANGFORD (155) | BL11: MUNICIPALITY OF OAKLAND-WAWANESA (157) | BM11: MUNICIPALITY OF GLENBORO-SOUTH CYPRESS (187) | BN11: RM OF WHITEHEAD (202) | BO11: RIVERDALE MUNICIPALITY (443) | BP11: MUNICIPALITY OF SOURIS-GLENWOOD (449) | BQ11: CITY OF BRANDON (500) | BR11: 0 | BS11: 0 | BT11: 0 | BU11: 0 | BV11: 0 | BW11: 0 | BX11: 0 | BY11: 0 | BZ11: 0 | CA11: 0 | CB11: 0 | CC11: 0 | CD11: 0 | CE11: 0 | DL11: 3110978 | DM11: 444664 | DN11: 1368028 | DO11: 403528 | DP11: 552006 | DQ11: 1896577 | DR11: 124755 | DS11: 2299 | DT11: 43124044 | DU11: 0 | DV11: 0 | DW11: 0 | DX11: 0 | DY11: 0 | DZ11: 0 | EA11: 0 | EB11: 0 | EC11: 0 | ED11: 0 | EE11: 0 | EF11: 0 | EG11: 0 | FO11: 1 | FP11: 2418624 | FQ11: BR | FS11: -50256528 | FT11: -50256528 | FU11: BR
C12: 8 | D12: FRONTIER | E12: FR | F12: 23 | G12: BE | H12: municipality of glenboro-south cypress | I12: Oct 29 | T12: 10 | U12: =+U11+1 -> 3 | V12: =+'DATA ENTRY'!A39 ->  | W12: =IF('DATA ENTRY'!G39="",0,1) -> 0 | X12: =IF('DATA ENTRY'!H39="",0,2) -> 0 | Y12: =IF('DATA ENTRY'!I39="",0,3) -> 0 | Z12: =IF('DATA ENTRY'!J39="",0,4) -> 0 | AA12: =IF('DATA ENTRY'!K39="",0,AA1) -> 0 | AB12: =IF('DATA ENTRY'!L39="",0,AB1) -> 0 | AC12: =IF('DATA ENTRY'!M39="",0,AC1) -> 0 | AD12: =IF('DATA ENTRY'!N39="",0,AD1) -> 0 | AE12: =IF('DATA ENTRY'!O39="",0,AE1) -> 0 | AF12: =IF('DATA ENTRY'!P39="",0,AF1) -> 0 | AG12: =IF('DATA ENTRY'!Q39="",0,AG1) -> 0 | AH12: =IF('DATA ENTRY'!R39="",0,AH1) -> 0 | AI12: 0 | AJ12: =HLOOKUP($AI$7,'DATA ENTRY'!$G$16:$R$60,T12,0) ->  | AN12: 6 | AV12: DI | AW12: D.S.F.M. | BI12: 0 | BJ12: 0 | BK12: 0 | BL12: 0 | BM12: 0 | BN12: 0 | BO12: 0 | BP12: 0 | BQ12: 0 | BR12: 0 | BS12: 0 | BT12: 0 | BU12: 0 | BV12: 0 | BW12: 0 | BX12: 0 | BY12: 0 | BZ12: 0 | CA12: 0 | CB12: 0 | CC12: 0 | CD12: 0 | CE12: 0 | DL12: 0 | DM12: 0 | DN12: 0 | DO12: 0 | DP12: 0 | DQ12: 0 | DR12: 0 | DS12: 0 | DT12: 0 | DU12: 0 | DV12: 0 | DW12: 0 | DX12: 0 | DY12: 0 | DZ12: 0 | EA12: 0 | EB12: 0 | EC12: 0 | ED12: 0 | EE12: 0 | EF12: 0 | EG12: 0 | FO12: 0 | FP12: 0 | FQ12: DI | FR12: No DSFM | FS12: 0 | FT12: 0 | FU12: DI | FW12: Sum of ratios page + control (*) | FY12: =+FY9-FW15 -> 1163715342
C13: 9 | D13: GARDEN VALLEY | E13: GA | F13: 4 | G13: BE | H13: rm of victoria | I13: Oct 29 | T13: 11 | U13: 4 | V13: =+'DATA ENTRY'!A40 ->  | W13: =IF('DATA ENTRY'!G40="",0,1) -> 0 | X13: =IF('DATA ENTRY'!H40="",0,2) -> 0 | Y13: =IF('DATA ENTRY'!I40="",0,3) -> 0 | Z13: =IF('DATA ENTRY'!J40="",0,4) -> 0 | AA13: =IF('DATA ENTRY'!K40="",0,AA1) -> 0 | AB13: =IF('DATA ENTRY'!L40="",0,AB1) -> 0 | AC13: =IF('DATA ENTRY'!M40="",0,AC1) -> 0 | AD13: =IF('DATA ENTRY'!N40="",0,AD1) -> 0 | AE13: =IF('DATA ENTRY'!O40="",0,AE1) -> 0 | AF13: =IF('DATA ENTRY'!P40="",0,AF1) -> 0 | AG13: =IF('DATA ENTRY'!Q40="",0,AG1) -> 0 | AH13: =IF('DATA ENTRY'!R40="",0,AH1) -> 0 | AI13: 0 | AJ13: =HLOOKUP($AI$7,'DATA ENTRY'!$G$16:$R$60,T13,0) ->  | AN13: 7 | AU13: W/O | AV13: EV | AW13: EVERGREEN | BA13: 14731677 | BC13: 1501499 | BD13: 1501499 | BE13: 797708 | BG13: 12432470 | BI13: MUNICIPALITY OF BIFROST-RIVERTON (105) | BJ13: RM OF GIMLI (129) | BK13: RM OF ROCKWOOD (168) | BL13: RM OF ST. ANDREWS (174) | BM13: TOWN OF ARBORG (300) | BN13: VILLAGE OF DUNNOTTAR (311) | BO13: TOWN OF WINNIPEG BEACH (465) | BP13: RM OF ARMSTRONG (602) | BQ13: RM OF FISHER (605) | BR13: 0 | BS13: 0 | BT13: 0 | BU13: 0 | BV13: 0 | BW13: 0 | BX13: 0 | BY13: 0 | BZ13: 0 | CA13: 0 | CB13: 0 | CC13: 0 | CD13: 0 | CE13: 0 | DL13: 2563652 | DM13: 6107891 | DN13: 4268 | DO13: 455584 | DP13: 557822 | DQ13: 932569 | DR13: 1223477 | DS13: 585781 | DT13: 1426 | DU13: 0 | DV13: 0 | DW13: 0 | DX13: 0 | DY13: 0 | DZ13: 0 | EA13: 0 | EB13: 0 | EC13: 0 | ED13: 0 | EE13: 0 | EF13: 0 | EG13: 0 | FO13: 0 | FP13: 797708 | FQ13: EV | FR13: No DSFM | FS13: 0 | FT13: -12432470 | FU13: EV | FW13: =SUM(FO9:FO45)+SUM(FS9:FS45) -> -1119865850
C14: 10 | D14: HANOVER | E14: HA | F14: 9 | G14: BE | H14: town of carberry | I14: Sep 30 | T14: 12 | U14: 5 | V14: =+'DATA ENTRY'!A41 ->  | W14: =IF('DATA ENTRY'!G41="",0,1) -> 0 | X14: =IF('DATA ENTRY'!H41="",0,2) -> 0 | Y14: =IF('DATA ENTRY'!I41="",0,3) -> 0 | Z14: =IF('DATA ENTRY'!J41="",0,4) -> 0 | AA14: =IF('DATA ENTRY'!K41="",0,AA1) -> 0 | AB14: =IF('DATA ENTRY'!L41="",0,AB1) -> 0 | AC14: =IF('DATA ENTRY'!M41="",0,AC1) -> 0 | AD14: =IF('DATA ENTRY'!N41="",0,AD1) -> 0 | AE14: =IF('DATA ENTRY'!O41="",0,AE1) -> 0 | AF14: =IF('DATA ENTRY'!P41="",0,AF1) -> 0 | AG14: =IF('DATA ENTRY'!Q41="",0,AG1) -> 0 | AH14: =IF('DATA ENTRY'!R41="",0,AH1) -> 0 | AI14: 0 | AJ14: =HLOOKUP($AI$7,'DATA ENTRY'!$G$16:$R$60,T14,0) ->  | AN14: 8 | AU14: W/O | AV14: FL | AW14: FLIN FLON | BA14: 5301361 | BC14: 376357 | BD14: 376357 | BE14: 251285 | BG14: 4673719 | BI14: City of Flin Flon, Municipality | BJ14: 0 | BK14: 0 | BL14: 0 | BM14: 0 | BN14: 0 | BO14: 0 | BP14: 0 | BQ14: 0 | BR14: 0 | BS14: 0 | BT14: 0 | BU14: 0 | BV14: 0 | BW14: 0 | BX14: 0 | BY14: 0 | BZ14: 0 | CA14: 0 | CB14: 0 | CC14: 0 | CD14: 0 | CE14: 0 | DL14: 4673719 | DM14: 0 | DN14: 0 | DO14: 0 | DP14: 0 | DQ14: 0 | DR14: 0 | DS14: 0 | DT14: 0 | DU14: 0 | DV14: 0 | DW14: 0 | DX14: 0 | DY14: 0 | DZ14: 0 | EA14: 0 | EB14: 0 | EC14: 0 | ED14: 0 | EE14: 0 | EF14: 0 | EG14: 0 | FO14: 0 | FP14: 251285 | FQ14: FL | FR14: No DSFM | FS14: 0 | FT14: -4673719 | FU14: FL | FV14: FL | FW14: =+FT14 -> -4673719
C15: 11 | D15: INTERLAKE | E15: IN | F15: 10 | G15: BE | H15: town of neepawa | I15: Sep 30 | T15: 13 | U15: 6 | V15: =+'DATA ENTRY'!A42 ->  | W15: =IF('DATA ENTRY'!G42="",0,1) -> 0 | X15: =IF('DATA ENTRY'!H42="",0,2) -> 0 | Y15: =IF('DATA ENTRY'!I42="",0,3) -> 0 | Z15: =IF('DATA ENTRY'!J42="",0,4) -> 0 | AA15: =IF('DATA ENTRY'!K42="",0,AA1) -> 0 | AB15: =IF('DATA ENTRY'!L42="",0,AB1) -> 0 | AC15: =IF('DATA ENTRY'!M42="",0,AC1) -> 0 | AD15: =IF('DATA ENTRY'!N42="",0,AD1) -> 0 | AE15: =IF('DATA ENTRY'!O42="",0,AE1) -> 0 | AF15: =IF('DATA ENTRY'!P42="",0,AF1) -> 0 | AG15: =IF('DATA ENTRY'!Q42="",0,AG1) -> 0 | AH15: =IF('DATA ENTRY'!R42="",0,AH1) -> 0 | AI15: 0 | AJ15: =HLOOKUP($AI$7,'DATA ENTRY'!$G$16:$R$60,T15,0) ->  | AN15: 9 | AV15: FO | AW15: FORT LA BOSSE | AX15: 11146840 | AY15: 19632 | AZ15: -4 | BA15: 11166468 | BB15: 0 | BC15: 459100 | BD15: 458758 | BE15: 626354 | BF15: 3959 | BG15: 10077055 | BI15: RM OF ELLICE-ARCHIE (101) | BJ15: MUNICIPALITY OF TWO BORDERS (122) | BK15: RM OF PIPESTONE (162) | BL15: RM OF SIFTON (184) | BM15: RM OF WALLACE-WOODWORTH (199) | BN15: RM OF WHITEHEAD (202) | BO15: TOWN OF VIRDEN (461) | BP15: 0 | BQ15: 0 | BR15: 0 | BS15: 0 | BT15: 0 | BU15: 0 | BV15: 0 | BW15: 0 | BX15: 0 | BY15: 0 | BZ15: 0 | CA15: 0 | CB15: 0 | CC15: 0 | CD15: 0 | CE15: 0 | DL15: 768913 | DM15: 366622 | DN15: 3364736 | DO15: 939318 | DP15: 3080023 | DQ15: 27363 | DR15: 1530080 | DS15: 0 | DT15: 0 | DU15: 0 | DV15: 0 | DW15: 0 | DX15: 0 | DY15: 0 | DZ15: 0 | EA15: 0 | EB15: 0 | EC15: 0 | ED15: 0 | EE15: 0 | EF15: 0 | EG15: 0 | FO15: 0 | FP15: 626354 | FQ15: FO | FS15: -10057423 | FT15: -10057423 | FU15: FO | FW15: =+FW13+FW14 -> -1124539569
C16: 12 | D16: KELSEY | E16: KE | F16: 2 | G16: BO | H16: R.M. of De Salaberry | I16: Oct 31 | T16: 14 | U16: 7 | V16: =+'DATA ENTRY'!A43 ->  | W16: =IF('DATA ENTRY'!G43="",0,1) -> 0 | X16: =IF('DATA ENTRY'!H43="",0,2) -> 0 | Y16: =IF('DATA ENTRY'!I43="",0,3) -> 0 | Z16: =IF('DATA ENTRY'!J43="",0,4) -> 0 | AA16: =IF('DATA ENTRY'!K43="",0,AA1) -> 0 | AB16: =IF('DATA ENTRY'!L43="",0,AB1) -> 0 | AC16: =IF('DATA ENTRY'!M43="",0,AC1) -> 0 | AD16: =IF('DATA ENTRY'!N43="",0,AD1) -> 0 | AE16: =IF('DATA ENTRY'!O43="",0,AE1) -> 0 | AF16: =IF('DATA ENTRY'!P43="",0,AF1) -> 0 | AG16: =IF('DATA ENTRY'!Q43="",0,AG1) -> 0 | AH16: =IF('DATA ENTRY'!R43="",0,AH1) -> 0 | AI16: 0 | AJ16: =HLOOKUP($AI$7,'DATA ENTRY'!$G$16:$R$60,T16,0) ->  | AN16: 10 | AU16: W/O | AV16: FR | AW16: FRONTIER | BA16: 3868724 | BC16: 159237 | BD16: 159237 | BE16: 179574 | BG16: 3529913 | BI16: RM OF LAKESHORE (143) | BJ16: TOWN OF LEAF RAPIDS (428) | BK16: TOWN OF SNOW LAKE (448) | BL16: RM OF ALONSA (601) | BM16: TOWN OF CHURCHILL (603) | BN16: RM OF KELSEY (604) | BO16: RM OF GRAHAMDALE (606) | BP16: TOWN OF LYNN LAKE (614) | BQ16: TOWN OF GRAND RAPIDS (615) | BR16: RM OF MOUNTAIN (617) | BS16: TOWN OF GILLAM (619) | BT16: INDIGENOUS AND NORTHERN RELATIONS (700) | BU16: INDIGENOUS AND NORTHERN RELATIONS (701) | BV16: INDIGENOUS AND NORTHERN RELATIONS (702) | BW16: INDIGENOUS AND NORTHERN RELATIONS (703) | BX16: INCORPORATED COMMUNITY OF CROSS LAKE (707) | BY16: INCORPORATED COMMUNITY OF SEYMOURVILLE (708) | BZ16: NORWAY HOUSE-NORTHERN AFFAIRS ACT (710) | CA16: PIKWITONEI-NORTHERN AFFAIRS ACT (712) | CB16: SHERRIDON-NORTHERN AFFAIRS ACT (713) | CC16: INCORPORATED COMMUNITY OF SOUTH INDIAN LAKE (714) | CD16: THICKET PORTAGE-NORTHERN AFFAIRS ACT (715) | CE16: WABOWDEN-NORTHERN AFFAIRS ACT (716) | CF16: CRANE RIVER-NORTHERN AFFAIRS ACT (727) | CG16: MALLARD-NORTHERN AFFAIRS ACT (728) | CH16: MEADOW PORTAGE-NORTHERN AFFAIRS ACT (729) | CI16: SALT POINT-NORTHERN AFFAIRS ACT (731) | CJ16: SPENCE LAKE-NORTHERN AFFAIRS ACT (732) | CK16: WATERHEN-NORTHERN AFFAIRS ACT (733) | CL16: BROCHET-NORTHERN AFFAIRS ACT (734) | CM16: EASTERVILLE-NORTHERN AFFAIRS ACT (736) | CN16: HERB LAKE LANDING-NORTHERN AFFAIRS ACT (738) | CO16: ILFORD-NORTHERN AFFAIRS ACT (739) | CP16: AGHAMING-NORTHERN AFFAIRS ACT (741) | CQ16: BERENS RIVER-NORTHERN AFFAIRS ACT (744) | CR16: BISSETT-NORTHERN AFFAIRS ACT (746) | CS16: DALLAS-RED ROSE-NORTHERN AFFAIRS ACT (747) | CT16: DAUPHIN RIVER-NORTHERN AFFAIRS ACT (748) | CU16: FISHER BAY-NORTHERN AFFAIRS ACT (750) | CV16: HOMEBROOK - PEONAN POINT-NORTHERN AFFAIRS ACT (754) | CW16: LOON STRAITS-NORTHERN AFFAIRS ACT (761) | CX16: MANIGOTAGAN-NORTHERN AFFAIRS ACT (762) | CY16: MATHESON ISLAND-NORTHERN AFFAIRS ACT (763) | CZ16: PINE DOCK-NORTHERN AFFAIRS ACT (765) | DA16: PRINCESS HARBOUR-NORTHERN AFFAIRS ACT (766) | DB16: BADEN-NORTHERN AFFAIRS ACT (781) | DC16: BARROWS-NORTHERN AFFAIRS ACT (782) | DD16: CAMPERVILLE-NORTHERN AFFAIRS ACT (783) | DE16: CORMORANT-NORTHERN AFFAIRS ACT (784) | DF16: DAWSON BAY-NORTHERN AFFAIRS ACT (785) | DG16: DUCK BAY-NORTHERN AFFAIRS ACT (786) | DH16: MOOSE LAKE-NORTHERN AFFAIRS ACT (787) | DI16: NATIONAL MILLS-NORTHERN AFFAIRS ACT (788) | DJ16: PELICAN RAPIDS-NORTHERN AFFAIRS ACT (789) | DK16: RED DEER LAKE-NORTHERN AFFAIRS ACT (792) | DL16: 347442 | DM16: 33508 | DN16: 563401 | DO16: 30964 | DP16: 532201 | DQ16: 313220 | DR16: 183825 | DS16: 58508 | DT16: 183642 | DU16: 26304 | DV16: 103952 | DW16: 2148 | DX16: 101734 | DY16: 2371 | DZ16: 6269 | EA16: 62225 | EB16: 11112 | EC16: 103078 | ED16: 12048 | EE16: 23837 | EF16: 5986 | EG16: 13926 | EH16: 86072 | EI16: 18865 | EJ16: 5778 | EK16: 61663 | EL16: 1143 | EM16: 36519 | EN16: 54670 | EO16: 15047 | EP16: 5021 | EQ16: 261 | ER16: 3353 | ES16: 1765 | ET16: 13006 | EU16: 115932 | EV16: 27446 | EW16: 3089 | EX16: 6575 | EY16: 17094 | EZ16: 9258 | FA16: 125716 | FB16: 55187 | FC16: 23412 | FD16: 2347 | FE16: 1000 | FF16: 6337 | FG16: 43531 | FH16: 28195 | FI16: 4193 | FJ16: 23802 | FK16: 6061 | FL16: 781 | FM16: 3847 | FN16: 1247 | FO16: -1 | FP16: 179574 | FQ16: FR | FR16: No DSFM | FS16: -2807773 | FT16: -2807773 | FU16: FR
C17: 13 | D17: LAKESHORE | E17: LA | F17: 8 | G17: BO | H17: Municipality of Emerson-Franklin | I17: Oct 31 | T17: 15 | U17: 8 | V17: =+'DATA ENTRY'!A44 ->  | W17: =IF('DATA ENTRY'!G44="",0,1) -> 0 | X17: =IF('DATA ENTRY'!H44="",0,2) -> 0 | Y17: =IF('DATA ENTRY'!I44="",0,3) -> 0 | Z17: =IF('DATA ENTRY'!J44="",0,4) -> 0 | AA17: =IF('DATA ENTRY'!K44="",0,AA1) -> 0 | AB17: =IF('DATA ENTRY'!L44="",0,AB1) -> 0 | AC17: =IF('DATA ENTRY'!M44="",0,AC1) -> 0 | AD17: =IF('DATA ENTRY'!N44="",0,AD1) -> 0 | AE17: =IF('DATA ENTRY'!O44="",0,AE1) -> 0 | AF17: =IF('DATA ENTRY'!P44="",0,AF1) -> 0 | AG17: =IF('DATA ENTRY'!Q44="",0,AG1) -> 0 | AH17: =IF('DATA ENTRY'!R44="",0,AH1) -> 0 | AI17: 0 | AJ17: =HLOOKUP($AI$7,'DATA ENTRY'!$G$16:$R$60,T17,0) ->  | AN17: 11 | AU17: W/O | AV17: GA | AW17: GARDEN VALLEY | BA17: 23160893 | BC17: 323087 | BD17: 323087 | BE17: 1256740 | BG17: 21581066 | BI17: MUNICIPALITY OF RHINELAND (164) | BJ17: RM OF ROLAND (169) | BK17: RM OF STANLEY (190) | BL17: CITY OF WINKLER (463) | BM17: 0 | BN17: 0 | BO17: 0 | BP17: 0 | BQ17: 0 | BR17: 0 | BS17: 0 | BT17: 0 | BU17: 0 | BV17: 0 | BW17: 0 | BX17: 0 | BY17: 0 | BZ17: 0 | CA17: 0 | CB17: 0 | CC17: 0 | CD17: 0 | CE17: 0 | DL17: 2888764 | DM17: 363883 | DN17: 6563062 | DO17: 11765356 | DP17: 0 | DQ17: 0 | DR17: 0 | DS17: 0 | DT17: 0 | DU17: 0 | DV17: 0 | DW17: 0 | DX17: 0 | DY17: 0 | DZ17: 0 | EA17: 0 | EB17: 0 | EC17: 0 | ED17: 0 | EE17: 0 | EF17: 0 | EG17: 0 | FO17: 1 | FP17: 1256740 | FQ17: GA | FR17: No DSFM | FS17: -21581065 | FT17: -21581065 | FU17: GA
C18: 14 | D18: LORD SELKIRK | E18: LO | F18: 6 | G18: BO | H18: R.M. of La Broquerie | I18: Sep 30 | T18: 16 | U18: 9 | V18: =+'DATA ENTRY'!A45 ->  | W18: =IF('DATA ENTRY'!G45="",0,1) -> 0 | X18: =IF('DATA ENTRY'!H45="",0,2) -> 0 | Y18: =IF('DATA ENTRY'!I45="",0,3) -> 0 | Z18: =IF('DATA ENTRY'!J45="",0,4) -> 0 | AA18: =IF('DATA ENTRY'!K45="",0,AA1) -> 0 | AB18: =IF('DATA ENTRY'!L45="",0,AB1) -> 0 | AC18: =IF('DATA ENTRY'!M45="",0,AC1) -> 0 | AD18: =IF('DATA ENTRY'!N45="",0,AD1) -> 0 | AE18: =IF('DATA ENTRY'!O45="",0,AE1) -> 0 | AF18: =IF('DATA ENTRY'!P45="",0,AF1) -> 0 | AG18: =IF('DATA ENTRY'!Q45="",0,AG1) -> 0 | AH18: =IF('DATA ENTRY'!R45="",0,AH1) -> 0 | AI18: 0 | AJ18: =HLOOKUP($AI$7,'DATA ENTRY'!$G$16:$R$60,T18,0) ->  | AN18: 12 | AV18: HA | AW18: HANOVER | AX18: 41566641 | AY18: 493184 | AZ18: -76 | BA18: 42059749 | BB18: 0 | BC18: 754063 | BD18: 747252 | BE18: 2294347 | BF18: -6358 | BG18: 39017697 | BI18: RM OF DE SALABERRY (119) | BJ18: MUNICIPALITY OF EMERSON-FRANKLIN (127) | BK18: RM OF HANOVER (135) | BL18: RM OF LA BROQUERIE (138) | BM18: RM OF RITCHOT (165) | BN18: RM OF STE. ANNE (175) | BO18: RM OF TACHE (194) | BP18: TOWN OF NIVERVILLE (340) | BQ18: CITY OF STEINBACH (451) | BR18: 0 | BS18: 0 | BT18: 0 | BU18: 0 | BV18: 0 | BW18: 0 | BX18: 0 | BY18: 0 | BZ18: 0 | CA18: 0 | CB18: 0 | CC18: 0 | CD18: 0 | CE18: 0 | DL18: 418568 | DM18: 2385 | DN18: 13041739 | DO18: 1467819 | DP18: 708130 | DQ18: 1436891 | DR18: 2347388 | DS18: 4474580 | DT18: 15120196 | DU18: 0 | DV18: 0 | DW18: 0 | DX18: 0 | DY18: 0 | DZ18: 0 | EA18: 0 | EB18: 0 | EC18: 0 | ED18: 0 | EE18: 0 | EF18: 0 | EG18: 0 | FO18: 1 | FP18: 2294347 | FQ18: HA | FS18: -38524512 | FT18: -38524512 | FU18: HA
C19: 15 | D19: LOUIS RIEL | E19: LR | F19: 3 | G19: BO | H19: R.M. of Montcalm | I19: Oct 31 | T19: 17 | U19: 10 | V19: =+'DATA ENTRY'!A46 ->  | W19: =IF('DATA ENTRY'!G46="",0,1) -> 0 | X19: =IF('DATA ENTRY'!H46="",0,2) -> 0 | Y19: =IF('DATA ENTRY'!I46="",0,3) -> 0 | Z19: =IF('DATA ENTRY'!J46="",0,4) -> 0 | AA19: =IF('DATA ENTRY'!K46="",0,AA1) -> 0 | AB19: =IF('DATA ENTRY'!L46="",0,AB1) -> 0 | AC19: =IF('DATA ENTRY'!M46="",0,AC1) -> 0 | AD19: =IF('DATA ENTRY'!N46="",0,AD1) -> 0 | AE19: =IF('DATA ENTRY'!O46="",0,AE1) -> 0 | AF19: =IF('DATA ENTRY'!P46="",0,AF1) -> 0 | AG19: =IF('DATA ENTRY'!Q46="",0,AG1) -> 0 | AH19: =IF('DATA ENTRY'!R46="",0,AH1) -> 0 | AI19: 0 | AJ19: =HLOOKUP($AI$7,'DATA ENTRY'!$G$16:$R$60,T19,0) ->  | AV19: IN | AW19: INTERLAKE | AX19: 24154575 | AY19: 0 | AZ19: 0 | BA19: 24154575 | BB19: 0 | BC19: 808470 | BD19: 808470 | BE19: 1280899 | BF19: 0 | BG19: 22065206 | BI19: RM OF ROCKWOOD (168) | BJ19: RM OF ROSSER (172) | BK19: RM OF ST. ANDREWS (174) | BL19: RM OF ST. LAURENT (178) | BM19: RM OF WEST ST. PAUL (201) | BN19: RM OF WOODLANDS (206) | BO19: TOWN OF TEULON (363) | BP19: TOWN OF STONEWALL (453) | BQ19: CITY OF WINNIPEG (590) | BR19: RM OF ARMSTRONG (602) | BS19: 0 | BT19: 0 | BU19: 0 | BV19: 0 | BW19: 0 | BX19: 0 | BY19: 0 | BZ19: 0 | CA19: 0 | CB19: 0 | CC19: 0 | CD19: 0 | CE19: 0 | DL19: 6749790 | DM19: 6976826 | DN19: 222854 | DO19: 1447 | DP19: 328540 | DQ19: 3217983 | DR19: 609312 | DS19: 3786893 | DT19: 41064 | DU19: 130499 | DV19: 0 | DW19: 0 | DX19: 0 | DY19: 0 | DZ19: 0 | EA19: 0 | EB19: 0 | EC19: 0 | ED19: 0 | EE19: 0 | EF19: 0 | EG19: 0 | FO19: -2 | FP19: 1280899 | FQ19: IN | FR19: No DSFM | FS19: -22065208 | FT19: -22065208 | FU19: IN
C20: 16 | D20: MOUNTAIN VIEW | E20: MO | F20: 11 | G20: BO | H20: R.M. of Morris | I20: Oct 29 | T20: 18 | U20: 11 | V20: =+'DATA ENTRY'!A47 ->  | W20: =IF('DATA ENTRY'!G47="",0,1) -> 0 | X20: =IF('DATA ENTRY'!H47="",0,2) -> 0 | Y20: =IF('DATA ENTRY'!I47="",0,3) -> 0 | Z20: =IF('DATA ENTRY'!J47="",0,4) -> 0 | AA20: =IF('DATA ENTRY'!K47="",0,AA1) -> 0 | AB20: =IF('DATA ENTRY'!L47="",0,AB1) -> 0 | AC20: =IF('DATA ENTRY'!M47="",0,AC1) -> 0 | AD20: =IF('DATA ENTRY'!N47="",0,AD1) -> 0 | AE20: =IF('DATA ENTRY'!O47="",0,AE1) -> 0 | AF20: =IF('DATA ENTRY'!P47="",0,AF1) -> 0 | AG20: =IF('DATA ENTRY'!Q47="",0,AG1) -> 0 | AH20: =IF('DATA ENTRY'!R47="",0,AH1) -> 0 | AI20: 0 | AJ20: =HLOOKUP($AI$7,'DATA ENTRY'!$G$16:$R$60,T20,0) ->  | AV20: KE | AW20: KELSEY | AX20: 5132153 | AY20: 0 | AZ20: 0 | BA20: 5132153 | BB20: 0 | BC20: 154704 | BD20: 154704 | BE20: 719655 | BF20: 0 | BG20: 4257794 | BI20: TOWN OF THE PAS (457) | BJ20: RM OF KELSEY (604) | BK20: 0 | BL20: 0 | BM20: 0 | BN20: 0 | BO20: 0 | BP20: 0 | BQ20: 0 | BR20: 0 | BS20: 0 | BT20: 0 | BU20: 0 | BV20: 0 | BW20: 0 | BX20: 0 | BY20: 0 | BZ20: 0 | CA20: 0 | CB20: 0 | CC20: 0 | CD20: 0 | CE20: 0 | DL20: 2981347 | DM20: 1276447 | DN20: 0 | DO20: 0 | DP20: 0 | DQ20: 0 | DR20: 0 | DS20: 0 | DT20: 0 | DU20: 0 | DV20: 0 | DW20: 0 | DX20: 0 | DY20: 0 | DZ20: 0 | EA20: 0 | EB20: 0 | EC20: 0 | ED20: 0 | EE20: 0 | EF20: 0 | EG20: 0 | FO20: 0 | FP20: 719655 | FQ20: KE | FS20: -4257794 | FT20: -4257794 | FU20: KE
C21: 17 | D21: MYSTERY LAKE | E21: MY | F21: 1 | G21: BO | H21: Municipality of Rhineland | I21: Oct 29 | T21: 19 | U21: 12 | V21: =+'DATA ENTRY'!A48 ->  | W21: =IF('DATA ENTRY'!G48="",0,1) -> 0 | X21: =IF('DATA ENTRY'!H48="",0,2) -> 0 | Y21: =IF('DATA ENTRY'!I48="",0,3) -> 0 | Z21: =IF('DATA ENTRY'!J48="",0,4) -> 0 | AA21: =IF('DATA ENTRY'!K48="",0,AA1) -> 0 | AB21: =IF('DATA ENTRY'!L48="",0,AB1) -> 0 | AC21: =IF('DATA ENTRY'!M48="",0,AC1) -> 0 | AD21: =IF('DATA ENTRY'!N48="",0,AD1) -> 0 | AE21: =IF('DATA ENTRY'!O48="",0,AE1) -> 0 | AF21: =IF('DATA ENTRY'!P48="",0,AF1) -> 0 | AG21: =IF('DATA ENTRY'!Q48="",0,AG1) -> 0 | AH21: =IF('DATA ENTRY'!R48="",0,AH1) -> 0 | AI21: 0 | AJ21: =HLOOKUP($AI$7,'DATA ENTRY'!$G$16:$R$60,T21,0) ->  | AV21: LA | AW21: LAKESHORE | AX21: 5944445 | AY21: 0 | AZ21: 0 | BA21: 5944445 | BB21: 0 | BC21: 414194 | BD21: 414194 | BE21: 333928 | BG21: 5196323 | BI21: MUNICIPALITY OF BIFROST-RIVERTON (105) | BJ21: RM OF COLDWELL (115) | BK21: RM OF ROCKWOOD (168) | BL21: RM OF ST. LAURENT (178) | BM21: MUNICIPALITY OF WEST INTERLAKE (185) | BN21: RM OF ARMSTRONG (602) | BO21: RM OF FISHER (605) | BP21: RM OF GRAHAMDALE (606) | BQ21: 0 | BR21: 0 | BS21: 0 | BT21: 0 | BU21: 0 | BV21: 0 | BW21: 0 | BX21: 0 | BY21: 0 | BZ21: 0 | CA21: 0 | CB21: 0 | CC21: 0 | CD21: 0 | CE21: 0 | DL21: 39383 | DM21: 924569 | DN21: 8980 | DO21: 3893 | DP21: 1378886 | DQ21: 493608 | DR21: 1442400 | DS21: 904604 | DT21: 0 | DU21: 0 | DV21: 0 | DW21: 0 | DX21: 0 | DY21: 0 | DZ21: 0 | EA21: 0 | EB21: 0 | EC21: 0 | ED21: 0 | EE21: 0 | EF21: 0 | EG21: 0 | FO21: 0 | FP21: 333928 | FQ21: LA | FS21: -5196323 | FT21: -5196323 | FU21: LA
C22: 18 | D22: PARK WEST | E22: PA | F22: 10 | G22: BO | H22: Town of Altona | I22: Jul 30 | T22: 20 | U22: 13 | V22: =+'DATA ENTRY'!A49 ->  | W22: =IF('DATA ENTRY'!G49="",0,1) -> 0 | X22: =IF('DATA ENTRY'!H49="",0,2) -> 0 | Y22: =IF('DATA ENTRY'!I49="",0,3) -> 0 | Z22: =IF('DATA ENTRY'!J49="",0,4) -> 0 | AA22: =IF('DATA ENTRY'!K49="",0,AA1) -> 0 | AB22: =IF('DATA ENTRY'!L49="",0,AB1) -> 0 | AC22: =IF('DATA ENTRY'!M49="",0,AC1) -> 0 | AD22: =IF('DATA ENTRY'!N49="",0,AD1) -> 0 | AE22: =IF('DATA ENTRY'!O49="",0,AE1) -> 0 | AF22: =IF('DATA ENTRY'!P49="",0,AF1) -> 0 | AG22: =IF('DATA ENTRY'!Q49="",0,AG1) -> 0 | AH22: =IF('DATA ENTRY'!R49="",0,AH1) -> 0 | AI22: 0 | AJ22: =HLOOKUP($AI$7,'DATA ENTRY'!$G$16:$R$60,T22,0) ->  | AV22: LO | AW22: LORD SELKIRK | AX22: 38498657 | AY22: 5118 | AZ22: 0 | BA22: 38503775 | BB22: 0 | BC22: 2534539 | BD22: 2534539 | BE22: 2082440 | BF22: 0 | BG22: 33886796 | BI22: RM OF BROKENHEAD (110) | BJ22: RM OF ST. ANDREWS (174) | BK22: RM OF ST. CLEMENTS (176) | BL22: RM OF VICTORIA BEACH (198) | BM22: CITY OF SELKIRK (447) | BN22: RM OF ALEXANDER (600) | BO22: 0 | BP22: 0 | BQ22: 0 | BR22: 0 | BS22: 0 | BT22: 0 | BU22: 0 | BV22: 0 | BW22: 0 | BX22: 0 | BY22: 0 | BZ22: 0 | CA22: 0 | CB22: 0 | CC22: 0 | CD22: 0 | CE22: 0 | DL22: 80131 | DM22: 11428984 | DN22: 8627898 | DO22: 2353982 | DP22: 8266620 | DQ22: 3129181 | DR22: 0 | DS22: 0 | DT22: 0 | DU22: 0 | DV22: 0 | DW22: 0 | DX22: 0 | DY22: 0 | DZ22: 0 | EA22: 0 | EB22: 0 | EC22: 0 | ED22: 0 | EE22: 0 | EF22: 0 | EG22: 0 | FO22: 0 | FP22: 2082440 | FQ22: LO | FS22: -33881678 | FT22: -33881678 | FU22: LO
C23: 19 | D23: PEMBINA TRAILS | E23: PE | F23: 3 | G23: BO | H23: R.M. of Piney | I23: Oct 29 | T23: 21 | U23: 14 | V23: =+'DATA ENTRY'!A50 ->  | W23: =IF('DATA ENTRY'!G50="",0,1) -> 0 | X23: =IF('DATA ENTRY'!H50="",0,2) -> 0 | Y23: =IF('DATA ENTRY'!I50="",0,3) -> 0 | Z23: =IF('DATA ENTRY'!J50="",0,4) -> 0 | AA23: =IF('DATA ENTRY'!K50="",0,AA1) -> 0 | AB23: =IF('DATA ENTRY'!L50="",0,AB1) -> 0 | AC23: =IF('DATA ENTRY'!M50="",0,AC1) -> 0 | AD23: =IF('DATA ENTRY'!N50="",0,AD1) -> 0 | AE23: =IF('DATA ENTRY'!O50="",0,AE1) -> 0 | AF23: =IF('DATA ENTRY'!P50="",0,AF1) -> 0 | AG23: =IF('DATA ENTRY'!Q50="",0,AG1) -> 0 | AH23: =IF('DATA ENTRY'!R50="",0,AH1) -> 0 | AI23: 0 | AJ23: =HLOOKUP($AI$7,'DATA ENTRY'!$G$16:$R$60,T23,0) ->  | AV23: LR | AW23: LOUIS RIEL | AX23: 119560210 | AY23: 13251455 | AZ23: -17479 | BA23: 132794186 | BB23: 0 | BC23: 3270502 | BD23: 2910676 | BE23: 6324643 | BF23: -261272 | BG23: 123460313 | BI23: RM OF RITCHOT (165) | BJ23: RM OF SPRINGFIELD (189) | BK23: CITY OF WINNIPEG (590) | BL23: 0 | BM23: 0 | BN23: 0 | BO23: 0 | BP23: 0 | BQ23: 0 | BR23: 0 | BS23: 0 | BT23: 0 | BU23: 0 | BV23: 0 | BW23: 0 | BX23: 0 | BY23: 0 | BZ23: 0 | CA23: 0 | CB23: 0 | CC23: 0 | CD23: 0 | CE23: 0 | DL23: 292074 | DM23: 525561 | DN23: 122642678 | DO23: 0 | DP23: 0 | DQ23: 0 | DR23: 0 | DS23: 0 | DT23: 0 | DU23: 0 | DV23: 0 | DW23: 0 | DX23: 0 | DY23: 0 | DZ23: 0 | EA23: 0 | EB23: 0 | EC23: 0 | ED23: 0 | EE23: 0 | EF23: 0 | EG23: 0 | FO23: 0 | FP23: 6324643 | FQ23: LR | FS23: -110208858 | FT23: -110208858 | FU23: LR
C24: 20 | D24: PINE CREEK | E24: PI | F24: 7 | G24: BO | H24: R.M. of Stuartburn | I24: Oct 29 | T24: 22 | U24: 15 | V24: =+'DATA ENTRY'!A51 ->  | W24: =IF('DATA ENTRY'!G51="",0,1) -> 0 | X24: =IF('DATA ENTRY'!H51="",0,2) -> 0 | Y24: =IF('DATA ENTRY'!I51="",0,3) -> 0 | Z24: =IF('DATA ENTRY'!J51="",0,4) -> 0 | AA24: =IF('DATA ENTRY'!K51="",0,AA1) -> 0 | AB24: =IF('DATA ENTRY'!L51="",0,AB1) -> 0 | AC24: =IF('DATA ENTRY'!M51="",0,AC1) -> 0 | AD24: =IF('DATA ENTRY'!N51="",0,AD1) -> 0 | AE24: =IF('DATA ENTRY'!O51="",0,AE1) -> 0 | AF24: =IF('DATA ENTRY'!P51="",0,AF1) -> 0 | AG24: =IF('DATA ENTRY'!Q51="",0,AG1) -> 0 | AH24: =IF('DATA ENTRY'!R51="",0,AH1) -> 0 | AI24: 0 | AJ24: =HLOOKUP($AI$7,'DATA ENTRY'!$G$16:$R$60,T24,0) ->  | AV24: MO | AW24: MOUNTAIN VIEW | AX24: 20304650 | AY24: 0 | AZ24: 0 | BA24: 20304650 | BB24: 0 | BC24: 345180 | BD24: 345180 | BE24: 1088497 | BF24: 0 | BG24: 18870973 | BI24: RM OF DAUPHIN (118) | BJ24: MUNICIPALITY OF ETHELBERT (126) | BK24: GRANDVIEW MUNICIPALITY (132) | BL24: RM OF LAKESHORE (143) | BM24: MUNICIPALITY OF MCCREARY (147) | BN24: RM OF MOSSEY RIVER (154) | BO24: RM OF RIDING MOUNTAIN WEST (181) | BP24: MUNICIPALITY OF HILLSBURG-ROBLIN-SHELL RIVER (182) | BQ24: GILBERT PLAINS MUNICIPALITY (323) | BR24: CITY OF DAUPHIN (411) | BS24: RM OF MOUNTAIN (617) | BT24: 0 | BU24: 0 | BV24: 0 | BW24: 0 | BX24: 0 | BY24: 0 | BZ24: 0 | CA24: 0 | CB24: 0 | CC24: 0 | CD24: 0 | CE24: 0 | DL24: 3078363 | DM24: 489367 | DN24: 1819432 | DO24: 908099 | DP24: 8074 | DQ24: 759693 | DR24: 952669 | DS24: 3862655 | DT24: 1977054 | DU24: 4805649 | DV24: 209919 | DW24: 0 | DX24: 0 | DY24: 0 | DZ24: 0 | EA24: 0 | EB24: 0 | EC24: 0 | ED24: 0 | EE24: 0 | EF24: 0 | EG24: 0 | FO24: -1 | FP24: 1088497 | FQ24: MO | FS24: -18870974 | FT24: -18870974 | FU24: MO
C25: 21 | D25: PORTAGE LA PRAIRIE | E25: PO | F25: 8 | G25: BR | H25: R.M. of Cornwallis | I25: Sep 30 | T25: 23 | U25: 16 | V25: =+'DATA ENTRY'!A52 ->  | W25: =IF('DATA ENTRY'!G52="",0,1) -> 0 | X25: =IF('DATA ENTRY'!H52="",0,2) -> 0 | Y25: =IF('DATA ENTRY'!I52="",0,3) -> 0 | Z25: =IF('DATA ENTRY'!J52="",0,4) -> 0 | AA25: =IF('DATA ENTRY'!K52="",0,AA1) -> 0 | AB25: =IF('DATA ENTRY'!L52="",0,AB1) -> 0 | AC25: =IF('DATA ENTRY'!M52="",0,AC1) -> 0 | AD25: =IF('DATA ENTRY'!N52="",0,AD1) -> 0 | AE25: =IF('DATA ENTRY'!O52="",0,AE1) -> 0 | AF25: =IF('DATA ENTRY'!P52="",0,AF1) -> 0 | AG25: =IF('DATA ENTRY'!Q52="",0,AG1) -> 0 | AH25: =IF('DATA ENTRY'!R52="",0,AH1) -> 0 | AI25: 0 | AJ25: =HLOOKUP($AI$7,'DATA ENTRY'!$G$16:$R$60,T25,0) ->  | AV25: MY | AW25: MYSTERY LAKE | AX25: 9653878 | AY25: 274869 | AZ25: 0 | BA25: 9928747 | BB25: 0 | BC25: 543025 | BD25: 526084 | BE25: 236479 | BF25: -23038 | BG25: 9172281 | BI25: City of Thompson | BJ25: 0 | BK25: 0 | BL25: 0 | BM25: 0 | BN25: 0 | BO25: 0 | BP25: 0 | BQ25: 0 | BR25: 0 | BS25: 0 | BT25: 0 | BU25: 0 | BV25: 0 | BW25: 0 | BX25: 0 | BY25: 0 | BZ25: 0 | CA25: 0 | CB25: 0 | CC25: 0 | CD25: 0 | CE25: 0 | DL25: 9172281 | DM25: 0 | DN25: 0 | DO25: 0 | DP25: 0 | DQ25: 0 | DR25: 0 | DS25: 0 | DT25: 0 | DU25: 0 | DV25: 0 | DW25: 0 | DX25: 0 | DY25: 0 | DZ25: 0 | EA25: 0 | EB25: 0 | EC25: 0 | ED25: 0 | EE25: 0 | EF25: 0 | EG25: 0 | FO25: 0 | FP25: 236479 | FQ25: MY | FR25: ok 1 mun. | FS25: -8897412 | FT25: -8897412 | FU25: MY
C26: 22 | D26: PRAIRIE ROSE | E26: PR | F26: 16 | G26: BR | H26: R.M. of Elton | I26: Oct 29 | T26: 24 | U26: 17 | V26: =+'DATA ENTRY'!A53 ->  | W26: =IF('DATA ENTRY'!G53="",0,1) -> 0 | X26: =IF('DATA ENTRY'!H53="",0,2) -> 0 | Y26: =IF('DATA ENTRY'!I53="",0,3) -> 0 | Z26: =IF('DATA ENTRY'!J53="",0,4) -> 0 | AA26: =IF('DATA ENTRY'!K53="",0,AA1) -> 0 | AB26: =IF('DATA ENTRY'!L53="",0,AB1) -> 0 | AC26: =IF('DATA ENTRY'!M53="",0,AC1) -> 0 | AD26: =IF('DATA ENTRY'!N53="",0,AD1) -> 0 | AE26: =IF('DATA ENTRY'!O53="",0,AE1) -> 0 | AF26: =IF('DATA ENTRY'!P53="",0,AF1) -> 0 | AG26: =IF('DATA ENTRY'!Q53="",0,AG1) -> 0 | AH26: =IF('DATA ENTRY'!R53="",0,AH1) -> 0 | AI26: 0 | AJ26: =HLOOKUP($AI$7,'DATA ENTRY'!$G$16:$R$60,T26,0) ->  | AV26: PA | AW26: PARK WEST | AX26: 11793259 | AY26: 240603 | AZ26: -70 | BA26: 12033792 | BB26: 0 | BC26: 769286 | BD26: 746973 | BE26: 602855 | BF26: -13764 | BG26: 10675415 | BI26: RM OF ELLICE-ARCHIE (101) | BJ26: RM OF OAKVIEW (107) | BK26: RM OF RIDING MOUNTAIN WEST (181) | BL26: RM OF YELLOWHEAD (183) | BM26: RM OF WALLACE-WOODWORTH (199) | BN26: HAMIOTA MUNICIPALITY (331) | BO26: ROSSBURN MUNICIPALITY (353) | BP26: PRAIRIE VIEW MUNICIPALITY (403) | BQ26: MUNICIPALITY OF RUSSELL-BINSCARTH (445) | BR26: MUNICIPALITY OF HARRISON PARK (609) | BS26: 0 | BT26: 0 | BU26: 0 | BV26: 0 | BW26: 0 | BX26: 0 | BY26: 0 | BZ26: 0 | CA26: 0 | CB26: 0 | CC26: 0 | CD26: 0 | CE26: 0 | DL26: 486459 | DM26: 229035 | DN26: 1487253 | DO26: 1663378 | DP26: 349290 | DQ26: 1485271 | DR26: 735368 | DS26: 2421696 | DT26: 1536029 | DU26: 281636 | DV26: 0 | DW26: 0 | DX26: 0 | DY26: 0 | DZ26: 0 | EA26: 0 | EB26: 0 | EC26: 0 | ED26: 0 | EE26: 0 | EF26: 0 | EG26: 0 | FO26: 0 | FP26: 602855 | FQ26: PA | FS26: -10434812 | FT26: -10434812 | FU26: PA
C27: 23 | D27: PRAIRIE SPIRIT | E27: PS | F27: 14 | G27: BR | H27: Municipality of North Cypress-Langford | I27: Sep 30 | T27: 25 | U27: 18 | V27: =+'DATA ENTRY'!A54 ->  | W27: =IF('DATA ENTRY'!G54="",0,1) -> 0 | X27: =IF('DATA ENTRY'!H54="",0,2) -> 0 | Y27: =IF('DATA ENTRY'!I54="",0,3) -> 0 | Z27: =IF('DATA ENTRY'!J54="",0,4) -> 0 | AA27: =IF('DATA ENTRY'!K54="",0,AA1) -> 0 | AB27: =IF('DATA ENTRY'!L54="",0,AB1) -> 0 | AC27: =IF('DATA ENTRY'!M54="",0,AC1) -> 0 | AD27: =IF('DATA ENTRY'!N54="",0,AD1) -> 0 | AE27: =IF('DATA ENTRY'!O54="",0,AE1) -> 0 | AF27: =IF('DATA ENTRY'!P54="",0,AF1) -> 0 | AG27: =IF('DATA ENTRY'!Q54="",0,AG1) -> 0 | AH27: =IF('DATA ENTRY'!R54="",0,AH1) -> 0 | AI27: 0 | AJ27: =HLOOKUP($AI$7,'DATA ENTRY'!$G$16:$R$60,T27,0) ->  | AV27: PE | AW27: PEMBINA TRAILS | AX27: 124742662 | AY27: 1602075 | AZ27: 14586 | BA27: 126359323 | BB27: 0 | BC27: 2429845 | BD27: 2401827 | BE27: 6903885 | BF27: -14227 | BG27: 117039820 | BI27: RM OF MACDONALD (146) | BJ27: RM OF HEADINGLEY (208) | BK27: CITY OF WINNIPEG (590) | BL27: 0 | BM27: 0 | BN27: 0 | BO27: 0 | BP27: 0 | BQ27: 0 | BR27: 0 | BS27: 0 | BT27: 0 | BU27: 0 | BV27: 0 | BW27: 0 | BX27: 0 | BY27: 0 | BZ27: 0 | CA27: 0 | CB27: 0 | CC27: 0 | CD27: 0 | CE27: 0 | DL27: 5731 | DM27: 960849 | DN27: 116073240 | DO27: 0 | DP27: 0 | DQ27: 0 | DR27: 0 | DS27: 0 | DT27: 0 | DU27: 0 | DV27: 0 | DW27: 0 | DX27: 0 | DY27: 0 | DZ27: 0 | EA27: 0 | EB27: 0 | EC27: 0 | ED27: 0 | EE27: 0 | EF27: 0 | EG27: 0 | FO27: 0 | FP27: 6903885 | FQ27: PE | FS27: -115437745 | FT27: -115437745 | FU27: PE
C28: 24 | D28: RED RIVER VALLEY | E28: RE | F28: 12 | G28: BR | H28: Municipality of Oakland-Wawanesa | I28: Oct 31 | T28: 26 | U28: 19 | V28: =+'DATA ENTRY'!A55 ->  | W28: =IF('DATA ENTRY'!G55="",0,1) -> 0 | X28: =IF('DATA ENTRY'!H55="",0,2) -> 0 | Y28: =IF('DATA ENTRY'!I55="",0,3) -> 0 | Z28: =IF('DATA ENTRY'!J55="",0,4) -> 0 | AA28: =IF('DATA ENTRY'!K55="",0,AA1) -> 0 | AB28: =IF('DATA ENTRY'!L55="",0,AB1) -> 0 | AC28: =IF('DATA ENTRY'!M55="",0,AC1) -> 0 | AD28: =IF('DATA ENTRY'!N55="",0,AD1) -> 0 | AE28: =IF('DATA ENTRY'!O55="",0,AE1) -> 0 | AF28: =IF('DATA ENTRY'!P55="",0,AF1) -> 0 | AG28: =IF('DATA ENTRY'!Q55="",0,AG1) -> 0 | AH28: =IF('DATA ENTRY'!R55="",0,AH1) -> 0 | AI28: 0 | AJ28: =HLOOKUP($AI$7,'DATA ENTRY'!$G$16:$R$60,T28,0) ->  | AV28: PI | AW28: PINE CREEK | AX28: 10003008 | AY28: 29363 | AZ28: 93 | BA28: 10032464 | BB28: 0 | BC28: 312678 | BD28: 312067 | BE28: 509512 | BF28: 974 | BG28: 9209300 | BI28: MUNICIPALITY OF GLENELLA-LANSDOWNE (142) | BJ28: MUNICIPALITY OF NORTH CYPRESS-LANGFORD (155) | BK28: MUNICIPALITY OF NORTH NORFOLK (156) | BL28: RM OF PORTAGE LA PRAIRIE (163) | BM28: MUNICIPALITY OF NORFOLK TREHERNE (188) | BN28: RM OF VICTORIA (197) | BO28: MUNICIPALITY OF WESTLAKE-GLADSTONE (200) | BP28: 0 | BQ28: 0 | BR28: 0 | BS28: 0 | BT28: 0 | BU28: 0 | BV28: 0 | BW28: 0 | BX28: 0 | BY28: 0 | BZ28: 0 | CA28: 0 | CB28: 0 | CC28: 0 | CD28: 0 | CE28: 0 | DL28: 373031 | DM28: 116943 | DN28: 4958795 | DO28: 33391 | DP28: 168349 | DQ28: 103745 | DR28: 3455045 | DS28: 0 | DT28: 0 | DU28: 0 | DV28: 0 | DW28: 0 | DX28: 0 | DY28: 0 | DZ28: 0 | EA28: 0 | EB28: 0 | EC28: 0 | ED28: 0 | EE28: 0 | EF28: 0 | EG28: 0 | FO28: 1 | FP28: 509512 | FQ28: PI | FS28: -9179936 | FT28: -9179936 | FU28: PI
C29: 25 | D29: RIVER EAST TRANSCONA | E29: RI | F29: 3 | G29: BR | H29: Municipality of Glenboro-South Cypress | I29: Oct 29 | T29: 27 | U29: 20 | V29: =+'DATA ENTRY'!A56 ->  | W29: =IF('DATA ENTRY'!G56="",0,1) -> 0 | X29: =IF('DATA ENTRY'!H56="",0,2) -> 0 | Y29: =IF('DATA ENTRY'!I56="",0,3) -> 0 | Z29: =IF('DATA ENTRY'!J56="",0,4) -> 0 | AA29: =IF('DATA ENTRY'!K56="",0,AA1) -> 0 | AB29: =IF('DATA ENTRY'!L56="",0,AB1) -> 0 | AC29: =IF('DATA ENTRY'!M56="",0,AC1) -> 0 | AD29: =IF('DATA ENTRY'!N56="",0,AD1) -> 0 | AE29: =IF('DATA ENTRY'!O56="",0,AE1) -> 0 | AF29: =IF('DATA ENTRY'!P56="",0,AF1) -> 0 | AG29: =IF('DATA ENTRY'!Q56="",0,AG1) -> 0 | AH29: =IF('DATA ENTRY'!R56="",0,AH1) -> 0 | AI29: 0 | AJ29: =HLOOKUP($AI$7,'DATA ENTRY'!$G$16:$R$60,T29,0) ->  | AV29: PO | AW29: PORTAGE LA PRAIRIE | AX29: 21715398 | AY29: 127821 | AZ29: -2 | BA29: 21843217 | BB29: 0 | BC29: 270928 | BD29: 269506 | BE29: 1177653 | BF29: -3937 | BG29: 20398573 | BI29: RM OF GREY (133) | BJ29: MUNICIPALITY OF NORTH NORFOLK (156) | BK29: RM OF PORTAGE LA PRAIRIE (163) | BL29: RM OF ST. FRANCOIS XAVIER (177) | BM29: MUNICIPALITY OF NORFOLK TREHERNE (188) | BN29: MUNICIPALITY OF WESTLAKE-GLADSTONE (200) | BO29: RM OF WOODLANDS (206) | BP29: CITY PORTAGE LA PRAIRIE (550) | BQ29: 0 | BR29: 0 | BS29: 0 | BT29: 0 | BU29: 0 | BV29: 0 | BW29: 0 | BX29: 0 | BY29: 0 | BZ29: 0 | CA29: 0 | CB29: 0 | CC29: 0 | CD29: 0 | CE29: 0 | DL29: 12884 | DM29: 90223 | DN29: 11710842 | DO29: 122031 | DP29: 1293 | DQ29: 417901 | DR29: 134727 | DS29: 7908673 | DT29: 0 | DU29: 0 | DV29: 0 | DW29: 0 | DX29: 0 | DY29: 0 | DZ29: 0 | EA29: 0 | EB29: 0 | EC29: 0 | ED29: 0 | EE29: 0 | EF29: 0 | EG29: 0 | FO29: -1 | FP29: 1177653 | FQ29: PO | FS29: -20270753 | FT29: -20270753 | FU29: PO
C30: 26 | D30: ROLLING RIVER | E30: RO | F30: 9 | G30: BR | H30: R.M. of Whitehead | I30: Oct 31 | T30: 28 | U30: 21 | V30: =+'DATA ENTRY'!A57 ->  | W30: =IF('DATA ENTRY'!G57="",0,1) -> 0 | X30: =IF('DATA ENTRY'!H57="",0,2) -> 0 | Y30: =IF('DATA ENTRY'!I57="",0,3) -> 0 | Z30: =IF('DATA ENTRY'!J57="",0,4) -> 0 | AA30: =IF('DATA ENTRY'!K57="",0,AA1) -> 0 | AB30: =IF('DATA ENTRY'!L57="",0,AB1) -> 0 | AC30: =IF('DATA ENTRY'!M57="",0,AC1) -> 0 | AD30: =IF('DATA ENTRY'!N57="",0,AD1) -> 0 | AE30: =IF('DATA ENTRY'!O57="",0,AE1) -> 0 | AF30: =IF('DATA ENTRY'!P57="",0,AF1) -> 0 | AG30: =IF('DATA ENTRY'!Q57="",0,AG1) -> 0 | AH30: =IF('DATA ENTRY'!R57="",0,AH1) -> 0 | AI30: 0 | AJ30: =HLOOKUP($AI$7,'DATA ENTRY'!$G$16:$R$60,T30,0) ->  | AV30: PR | AW30: PRAIRIE ROSE | AX30: 20232366 | AY30: 781928 | AZ30: -549 | BA30: 21013745 | BB30: 0 | BC30: 1085297 | BD30: 1058604 | BE30: 1215336 | BF30: 68559 | BG30: 18644553 | BI30: RM OF CARTIER (112) | BJ30: RM OF DUFFERIN (120) | BK30: RM OF GREY (133) | BL30: MUNICIPALITY OF LORNE (144) | BM30: RM OF MACDONALD (146) | BN30: RM OF MORRIS (152) | BO30: MUNICIPALITY OF PEMBINA (161) | BP30: RM OF PORTAGE LA PRAIRIE (163) | BQ30: RM OF ROLAND (169) | BR30: RM OF ST. FRANCOIS XAVIER (177) | BS30: RM OF ST. LAURENT (178) | BT30: MUNICIPALITY OF NORFOLK TREHERNE (188) | BU30: RM OF STANLEY (190) | BV30: RM OF THOMPSON (195) | BW30: RM OF WOODLANDS (206) | BX30: TOWN OF CARMAN (409) | BY30: 0 | BZ30: 0 | CA30: 0 | CB30: 0 | CC30: 0 | CD30: 0 | CE30: 0 | DL30: 3428215 | DM30: 3846270 | DN30: 2235787 | DO30: 383499 | DP30: 249812 | DQ30: 500996 | DR30: 45441 | DS30: 395055 | DT30: 1821821 | DU30: 1458221 | DV30: 990612 | DW30: 2387 | DX30: 5174 | DY30: 1585763 | DZ30: 12730 | EA30: 1682769 | EB30: 0 | EC30: 0 | ED30: 0 | EE30: 0 | EF30: 0 | EG30: 0 | FO30: 1 | FP30: 1215336 | FQ30: PR | FS30: -17862624 | FT30: -17862624 | FU30: PR
C31: 27 | D31: SEINE RIVER | E31: SE | F31: 10 | G31: BR | H31: Riverdale Municipality | I31: Sep 30 | T31: 29 | U31: 22 | V31: =+'DATA ENTRY'!A58 ->  | W31: =IF('DATA ENTRY'!G58="",0,1) -> 0 | X31: =IF('DATA ENTRY'!H58="",0,2) -> 0 | Y31: =IF('DATA ENTRY'!I58="",0,3) -> 0 | Z31: =IF('DATA ENTRY'!J58="",0,4) -> 0 | AA31: =IF('DATA ENTRY'!K58="",0,AA1) -> 0 | AB31: =IF('DATA ENTRY'!L58="",0,AB1) -> 0 | AC31: =IF('DATA ENTRY'!M58="",0,AC1) -> 0 | AD31: =IF('DATA ENTRY'!N58="",0,AD1) -> 0 | AE31: =IF('DATA ENTRY'!O58="",0,AE1) -> 0 | AF31: =IF('DATA ENTRY'!P58="",0,AF1) -> 0 | AG31: =IF('DATA ENTRY'!Q58="",0,AG1) -> 0 | AH31: =IF('DATA ENTRY'!R58="",0,AH1) -> 0 | AI31: 0 | AJ31: =HLOOKUP($AI$7,'DATA ENTRY'!$G$16:$R$60,T31,0) ->  | AV31: PS | AW31: PRAIRIE SPIRIT | AX31: 16248003 | AY31: 1775908 | AZ31: -1 | BA31: 18023910 | BB31: 0 | BC31: 841411 | BD31: 763122 | BE31: 982940 | BF31: 79772 | BG31: 16119787 | BI31: RM OF ARGYLE (102) | BJ31: RM OF DUFFERIN (120) | BK31: RM OF GREY (133) | BL31: MUNICIPALITY OF LORNE (144) | BM31: MUNICIPALITY OF LOUISE (145) | BN31: MUNICIPALITY OF PEMBINA (161) | BO31: RM OF PORTAGE LA PRAIRIE (163) | BP31: CARTWRIGHT-ROBLIN MUNICIPALITY (167) | BQ31: MUNICIPALITY OF GLENBORO-SOUTH CYPRESS (187) | BR31: MUNICIPALITY OF NORFOLK TREHERNE (188) | BS31: RM OF STANLEY (190) | BT31: RM OF PRAIRIE LAKES (192) | BU31: RM OF THOMPSON (195) | BV31: RM OF VICTORIA (197) | BW31: 0 | BX31: 0 | BY31: 0 | BZ31: 0 | CA31: 0 | CB31: 0 | CC31: 0 | CD31: 0 | CE31: 0 | DL31: 1163053 | DM31: 110859 | DN31: 922025 | DO31: 3266911 | DP31: 2333448 | DQ31: 3257598 | DR31: 41557 | DS31: 861318 | DT31: 1083216 | DU31: 1587569 | DV31: 853 | DW31: 462469 | DX31: 41370 | DY31: 987540 | DZ31: 0 | EA31: 0 | EB31: 0 | EC31: 0 | ED31: 0 | EE31: 0 | EF31: 0 | EG31: 0 | FO31: 1 | FP31: 982940 | FQ31: PS | FS31: -14343878 | FT31: -14343878 | FU31: PS
C32: 28 | D32: SEVEN OAKS | E32: SO | F32: 3 | G32: BR | H32: Municipality of Souris-Glenwood | I32: Oct 31 | T32: 30 | U32: 23 | V32: =+'DATA ENTRY'!A59 ->  | W32: =IF('DATA ENTRY'!G59="",0,1) -> 0 | X32: =IF('DATA ENTRY'!H59="",0,2) -> 0 | Y32: =IF('DATA ENTRY'!I59="",0,3) -> 0 | Z32: =IF('DATA ENTRY'!J59="",0,4) -> 0 | AA32: =IF('DATA ENTRY'!K59="",0,AA1) -> 0 | AB32: =IF('DATA ENTRY'!L59="",0,AB1) -> 0 | AC32: =IF('DATA ENTRY'!M59="",0,AC1) -> 0 | AD32: =IF('DATA ENTRY'!N59="",0,AD1) -> 0 | AE32: =IF('DATA ENTRY'!O59="",0,AE1) -> 0 | AF32: =IF('DATA ENTRY'!P59="",0,AF1) -> 0 | AG32: =IF('DATA ENTRY'!Q59="",0,AG1) -> 0 | AH32: =IF('DATA ENTRY'!R59="",0,AH1) -> 0 | AI32: 0 | AJ32: =HLOOKUP($AI$7,'DATA ENTRY'!$G$16:$R$60,T32,0) ->  | AV32: RE | AW32: RED RIVER VALLEY | AX32: 21258440 | AY32: 5343088 | AZ32: 2471 | BA32: 26603999 | BB32: 0 | BC32: 818721 | BD32: 657633 | BE32: 1440652 | BF32: -49130 | BG32: 24393756 | BI32: RM OF CARTIER (112) | BJ32: RM OF DE SALABERRY (119) | BK32: RM OF DUFFERIN (120) | BL32: MUNICIPALITY OF EMERSON-FRANKLIN (127) | BM32: RM OF MACDONALD (146) | BN32: RM OF MONTCALM (151) | BO32: RM OF MORRIS (152) | BP32: MUNICIPALITY OF RHINELAND (164) | BQ32: RM OF RITCHOT (165) | BR32: RM OF ROLAND (169) | BS32: VILLAGE ST. PIERRE-JOLYS (357) | BT32: TOWN OF MORRIS (435) | BU32: 0 | BV32: 0 | BW32: 0 | BX32: 0 | BY32: 0 | BZ32: 0 | CA32: 0 | CB32: 0 | CC32: 0 | CD32: 0 | CE32: 0 | DL32: 453909 | DM32: 3993980 | DN32: 28866 | DO32: 174330 | DP32: 10323372 | DQ32: 1070036 | DR32: 5171337 | DS32: 19863 | DT32: 1265840 | DU32: 72691 | DV32: 583615 | DW32: 1235918 | DX32: 0 | DY32: 0 | DZ32: 0 | EA32: 0 | EB32: 0 | EC32: 0 | ED32: 0 | EE32: 0 | EF32: 0 | EG32: 0 | FO32: -1 | FP32: 0 | FQ32: RE | FS32: -19050669 | FT32: -19050669 | FU32: RE
C33: 29 | D33: SOUTHWEST HORIZON | E33: SR | F33: 13 | G33: BR | H33: City of Brandon | I33: Jun 30 | T33: 31 | U33: 24 | V33: =+'DATA ENTRY'!A60 -> 0 | W33: =IF('DATA ENTRY'!G60="",0,1) -> 0 | X33: =IF('DATA ENTRY'!H60="",0,2) -> 0 | Y33: =IF('DATA ENTRY'!I60="",0,3) -> 0 | Z33: =IF('DATA ENTRY'!J60="",0,4) -> 0 | AA33: =IF('DATA ENTRY'!K60="",0,AA1) -> 0 | AB33: =IF('DATA ENTRY'!L60="",0,AB1) -> 0 | AC33: =IF('DATA ENTRY'!M60="",0,AC1) -> 0 | AD33: =IF('DATA ENTRY'!N60="",0,AD1) -> 0 | AE33: =IF('DATA ENTRY'!O60="",0,AE1) -> 0 | AF33: =IF('DATA ENTRY'!P60="",0,AF1) -> 0 | AG33: =IF('DATA ENTRY'!Q60="",0,AG1) -> 0 | AH33: =IF('DATA ENTRY'!R60="",0,AH1) -> 0 | AI33: 0 | AJ33: =HLOOKUP($AI$7,'DATA ENTRY'!$G$16:$R$60,T33,0) ->  | AK33: 0 | AV33: RI | AW33: RIVER EAST TRANSCONA | AX33: 107950952 | AY33: 2178220 | AZ33: 4008 | BA33: 110133180 | BB33: 0 | BC33: 745262 | BD33: 730607 | BE33: 5899002 | BF33: -109385 | BG33: 103598301 | BI33: RM OF EAST ST. PAUL (121) | BJ33: RM OF ST. CLEMENTS (176) | BK33: CITY OF WINNIPEG (590) | BL33: 0 | BM33: 0 | BN33: 0 | BO33: 0 | BP33: 0 | BQ33: 0 | BR33: 0 | BS33: 0 | BT33: 0 | BU33: 0 | BV33: 0 | BW33: 0 | BX33: 0 | BY33: 0 | BZ33: 0 | CA33: 0 | CB33: 0 | CC33: 0 | CD33: 0 | CE33: 0 | DL33: 12012208 | DM33: 2532224 | DN33: 89053869 | DO33: 0 | DP33: 0 | DQ33: 0 | DR33: 0 | DS33: 0 | DT33: 0 | DU33: 0 | DV33: 0 | DW33: 0 | DX33: 0 | DY33: 0 | DZ33: 0 | EA33: 0 | EB33: 0 | EC33: 0 | ED33: 0 | EE33: 0 | EF33: 0 | EG33: 0 | FO33: 0 | FP33: 5899002 | FQ33: RI | FS33: -101420081 | FT33: -101420081 | FU33: RI
C34: 30 | D34: ST. JAMES-ASSINIBOIA | E34: ST | F34: 2 | G34: EV | H34: municipality of bifrost-riverton | I34: Sep 30 | AV34: RO | AW34: ROLLING RIVER | AX34: 14571699 | AY34: 17228 | AZ34: 0 | BA34: 14588927 | BB34: 0 | BC34: 718967 | BD34: 717685 | BE34: 817725 | BF34: -24558 | BG34: 13076793 | BI34: RM OF OAKVIEW (107) | BJ34: MUNICIPALITY OF CLANWILLIAM-ERICKSON (114) | BK34: RM OF CORNWALLIS (116) | BL34: RM OF ELTON (124) | BM34: RM OF MINTO-ODANAH (159) | BN34: RM OF YELLOWHEAD (183) | BO34: TOWN OF MINNEDOSA (431) | BP34: RIVERDALE MUNICIPALITY (443) | BQ34: MUNICIPALITY OF HARRISON PARK (609) | BR34: 0 | BS34: 0 | BT34: 0 | BU34: 0 | BV34: 0 | BW34: 0 | BX34: 0 | BY34: 0 | BZ34: 0 | CA34: 0 | CB34: 0 | CC34: 0 | CD34: 0 | CE34: 0 | DL34: 2628091 | DM34: 725209 | DN34: 697736 | DO34: 1743861 | DP34: 1708208 | DQ34: 76356 | DR34: 1504609 | DS34: 1453128 | DT34: 2539596 | DU34: 0 | DV34: 0 | DW34: 0 | DX34: 0 | DY34: 0 | DZ34: 0 | EA34: 0 | EB34: 0 | EC34: 0 | ED34: 0 | EE34: 0 | EF34: 0 | EG34: 0 | FO34: -1 | FP34: 817725 | FQ34: RO | FS34: -13059566 | FT34: -13059566 | FU34: RO
C35: 31 | D35: SUNRISE | E35: SU | F35: 12 | G35: EV | H35: rm of gimli | I35: Aug 31 | AV35: SE | AW35: SEINE RIVER | AX35: 27814823 | AY35: 6780172 | AZ35: -6596 | BA35: 34588399 | BB35: 0 | BC35: 1289547 | BD35: 1027613 | BE35: 2052661 | BF35: -287005 | BG35: 31533196 | BI35: RM OF LA BROQUERIE (138) | BJ35: RM OF MACDONALD (146) | BK35: RM OF RITCHOT (165) | BL35: RM OF STE. ANNE (175) | BM35: RM OF SPRINGFIELD (189) | BN35: RM OF TACHE (194) | BO35: TOWN OF STE. ANNE (351) | BP35: CITY OF WINNIPEG (590) | BQ35: RM OF PINEY (610) | BR35: RM OF REYNOLDS (611) | BS35: 0 | BT35: 0 | BU35: 0 | BV35: 0 | BW35: 0 | BX35: 0 | BY35: 0 | BZ35: 0 | CA35: 0 | CB35: 0 | CC35: 0 | CD35: 0 | CE35: 0 | DL35: 2724103 | DM35: 3975490 | DN35: 6406251 | DO35: 3681939 | DP35: 67429 | DQ35: 7260752 | DR35: 1548413 | DS35: 4937599 | DT35: 511280 | DU35: 419941 | DV35: 0 | DW35: 0 | DX35: 0 | DY35: 0 | DZ35: 0 | EA35: 0 | EB35: 0 | EC35: 0 | ED35: 0 | EE35: 0 | EF35: 0 | EG35: 0 | FO35: -1 | FP35: 2052661 | FQ35: SE | FS35: -24753025 | FT35: -24753025 | FU35: SE
C36: 32 | D36: SWAN VALLEY | E36: SW | F36: 4 | G36: EV | H36: rm of rockwood | I36: Oct 29 | AV36: SO | AW36: SEVEN OAKS | AX36: 76703978 | AY36: 347123 | AZ36: -410 | BA36: 77050691 | BB36: 0 | BC36: 2681917 | BD36: 2675142 | BE36: 4017116 | BF36: -15107 | BG36: 70366765 | BI36: RM OF ST. ANDREWS (174) | BJ36: RM OF WEST ST. PAUL (201) | BK36: CITY OF WINNIPEG (590) | BL36: 0 | BM36: 0 | BN36: 0 | BO36: 0 | BP36: 0 | BQ36: 0 | BR36: 0 | BS36: 0 | BT36: 0 | BU36: 0 | BV36: 0 | BW36: 0 | BX36: 0 | BY36: 0 | BZ36: 0 | CA36: 0 | CB36: 0 | CC36: 0 | CD36: 0 | CE36: 0 | DL36: 510296 | DM36: 11154675 | DN36: 58701794 | DO36: 0 | DP36: 0 | DQ36: 0 | DR36: 0 | DS36: 0 | DT36: 0 | DU36: 0 | DV36: 0 | DW36: 0 | DX36: 0 | DY36: 0 | DZ36: 0 | EA36: 0 | EB36: 0 | EC36: 0 | ED36: 0 | EE36: 0 | EF36: 0 | EG36: 0 | FO36: 0 | FP36: 0 | FQ36: SO | FS36: -70019642 | FT36: -70019642 | FU36: SO
C37: 33 | D37: TURTLE MOUNTAIN | E37: TM | F37: 6 | G37: EV | H37: rm of st andrews | I37: Oct 31 | AV37: SR | AW37: SOUTHWEST HORIZON | AX37: 15844398 | AY37: 0 | AZ37: -13 | BA37: 15844385 | BB37: 0 | BC37: 713853 | BD37: 712439 | BE37: 898679 | BF37: -9711 | BG37: 14241564 | BI37: MUNICIPALITY OF BRENDA-WASKADA (109) | BJ37: MUNICIPALITY OF GRASSLAND (111) | BK37: RM OF CORNWALLIS (116) | BL37: MUNICIPALITY OF TWO BORDERS (122) | BM37: MUNICIPALITY OF BOISSEVAIN-MORTON (153) | BN37: MUNICIPALITY OF OAKLAND-WAWANESA (157) | BO37: RM OF SIFTON (184) | BP37: MUNICIPALITY OF GLENBORO-SOUTH CYPRESS (187) | BQ37: RM OF PRAIRIE LAKES (192) | BR37: RM OF WHITEHEAD (202) | BS37: MUNICIPALITY OF DELORAINE-WINCHESTER (205) | BT37: TOWN OF MELITA (429) | BU37: MUNICIPALITY OF SOURIS-GLENWOOD (449) | BV37: 0 | BW37: 0 | BX37: 0 | BY37: 0 | BZ37: 0 | CA37: 0 | CB37: 0 | CC37: 0 | CD37: 0 | CE37: 0 | DL37: 2329316 | DM37: 1769534 | DN37: 52865 | DO37: 3112233 | DP37: 102899 | DQ37: 1596648 | DR37: 318770 | DS37: 308617 | DT37: 136580 | DU37: 224474 | DV37: 1570584 | DW37: 383589 | DX37: 2335455 | DY37: 0 | DZ37: 0 | EA37: 0 | EB37: 0 | EC37: 0 | ED37: 0 | EE37: 0 | EF37: 0 | EG37: 0 | FO37: 0 | FP37: 898679 | FQ37: SR | FS37: -14241564 | FT37: -14241564 | FU37: SR
C38: 34 | D38: TURTLE RIVER | E38: TR | F38: 7 | G38: EV | H38: town of arborg | I38: Sep 30 | AV38: ST | AW38: ST. JAMES-ASSINIBOIA | AX38: 74767998 | AY38: 875286 | AZ38: -17980 | BA38: 75625304 | BB38: 0 | BC38: 1772637 | BD38: 1752308 | BE38: 4131537 | BF38: 63474 | BG38: 69657656 | BI38: RM OF HEADINGLEY (208) | BJ38: CITY OF WINNIPEG (590) | BK38: 0 | BL38: 0 | BM38: 0 | BN38: 0 | BO38: 0 | BP38: 0 | BQ38: 0 | BR38: 0 | BS38: 0 | BT38: 0 | BU38: 0 | BV38: 0 | BW38: 0 | BX38: 0 | BY38: 0 | BZ38: 0 | CA38: 0 | CB38: 0 | CC38: 0 | CD38: 0 | CE38: 0 | DL38: 7128499 | DM38: 62529157 | DN38: 0 | DO38: 0 | DP38: 0 | DQ38: 0 | DR38: 0 | DS38: 0 | DT38: 0 | DU38: 0 | DV38: 0 | DW38: 0 | DX38: 0 | DY38: 0 | DZ38: 0 | EA38: 0 | EB38: 0 | EC38: 0 | ED38: 0 | EE38: 0 | EF38: 0 | EG38: 0 | FO38: 0 | FP38: 4131537 | FQ38: ST | FS38: -68782370 | FT38: -68782370 | FU38: ST
C39: 35 | D39: WESTERN | E39: WE | F39: 5 | G39: EV | H39: village of dunnottar | I39: Jun 30 | AV39: SU | AW39: SUNRISE | AX39: 45481523 | AY39: 599198 | AZ39: -120 | BA39: 46080601 | BB39: 0 | BC39: 1489849 | BD39: 1465596 | BE39: 2296766 | BF39: -78370 | BG39: 42372356 | BI39: RM OF BROKENHEAD (110) | BJ39: RM OF LAC DU BONNET (139) | BK39: RM OF RITCHOT (165) | BL39: RM OF ST. CLEMENTS (176) | BM39: RM OF SPRINGFIELD (189) | BN39: RM OF TACHE (194) | BO39: RM OF WHITEMOUTH (203) | BP39: TOWN OF LAC DU BONNET (333) | BQ39: TOWN POWERVIEW-PINEFALLS (347) | BR39: TOWN OF BEAUSEJOUR (401) | BS39: RM OF ALEXANDER (600) | BT39: RM OF REYNOLDS (611) | BU39: 0 | BV39: 0 | BW39: 0 | BX39: 0 | BY39: 0 | BZ39: 0 | CA39: 0 | CB39: 0 | CC39: 0 | CD39: 0 | CE39: 0 | DL39: 4990721 | DM39: 6058079 | DN39: 149403 | DO39: 1027063 | DP39: 20183904 | DQ39: 441032 | DR39: 1296990 | DS39: 805153 | DT39: 415278 | DU39: 2335318 | DV39: 3163980 | DW39: 1505435 | DX39: 0 | DY39: 0 | DZ39: 0 | EA39: 0 | EB39: 0 | EC39: 0 | ED39: 0 | EE39: 0 | EF39: 0 | EG39: 0 | FO39: 0 | FP39: 2296766 | FQ39: SU | FS39: -41773158 | FT39: -41773158 | FU39: SU
C40: 36 | D40: WINNIPEG | E40: WI | F40: 1 | G40: EV | H40: town of winnipeg beach | I40: Aug 31 | AU40: W/O | AV40: SW | AW40: SWAN VALLEY | BA40: 10199573 | BC40: 994366 | BD40: 994366 | BE40: 659197 | BG40: 8546010 | BI40: MUNICIPALITY OF MINITONAS-BOWSMAN (149) | BJ40: MUNICIPALITY OF SWAN VALLEY WEST (193) | BK40: TOWN OF SWAN RIVER (455) | BL40: RM OF MOUNTAIN (617) | BM40: 0 | BN40: 0 | BO40: 0 | BP40: 0 | BQ40: 0 | BR40: 0 | BS40: 0 | BT40: 0 | BU40: 0 | BV40: 0 | BW40: 0 | BX40: 0 | BY40: 0 | BZ40: 0 | CA40: 0 | CB40: 0 | CC40: 0 | CD40: 0 | CE40: 0 | DL40: 2211588 | DM40: 3545504 | DN40: 2304543 | DO40: 484375 | DP40: 0 | DQ40: 0 | DR40: 0 | DS40: 0 | DT40: 0 | DU40: 0 | DV40: 0 | DW40: 0 | DX40: 0 | DY40: 0 | DZ40: 0 | EA40: 0 | EB40: 0 | EC40: 0 | ED40: 0 | EE40: 0 | EF40: 0 | EG40: 0 | FO40: 0 | FP40: 659197 | FQ40: SW | FR40: No DSFM | FS40: 0 | FT40: -8546010 | FU40: SW
C41: 37 | D41: WHITESHELL | E41: XW | F41: 1 | G41: EV | H41: rm of armstrong | I41: Oct 31 | AU41: W/O | AV41: TM | AW41: TURTLE MOUNTAIN | BA41: 8414018 | BB41: 0 | BC41: 0 | BD41: 0 | BE41: 461002 | BG41: 7953016 | BI41: RM OF ARGYLE (102) | BJ41: MUNICIPALITY OF GRASSLAND (111) | BK41: MUNICIPALITY OF BOISSEVAIN-MORTON (153) | BL41: CARTWRIGHT-ROBLIN MUNICIPALITY (167) | BM41: RM OF PRAIRIE LAKES (192) | BN41: KILLARNEY-TURTLE MOUNTAIN (196) | BO41: 0 | BP41: 0 | BQ41: 0 | BR41: 0 | BS41: 0 | BT41: 0 | BU41: 0 | BV41: 0 | BW41: 0 | BX41: 0 | BY41: 0 | BZ41: 0 | CA41: 0 | CB41: 0 | CC41: 0 | CD41: 0 | CE41: 0 | DL41: 78569 | DM41: 537275 | DN41: 2473490 | DO41: 170897 | DP41: 1368774 | DQ41: 3324012 | DR41: 0 | DS41: 0 | DT41: 0 | DU41: 0 | DV41: 0 | DW41: 0 | DX41: 0 | DY41: 0 | DZ41: 0 | EA41: 0 | EB41: 0 | EC41: 0 | ED41: 0 | EE41: 0 | EF41: 0 | EG41: 0 | FO41: -1 | FP41: 461002 | FQ41: TM | FR41: No DSFM | FS41: -7953017 | FT41: -7953017 | FU41: TM
G42: EV | H42: rm of fisher | I42: Oct 31 | AV42: TR | AW42: TURTLE RIVER | AX42: 4321213 | AY42: 253183 | AZ42: 0 | BA42: 4574396 | BB42: 0 | BC42: 271971 | BD42: 263938 | BE42: 318570 | BF42: 84517 | BG42: 3899338 | BI42: MUNICIPALITY OF GLENELLA-LANSDOWNE (142) | BJ42: RM OF LAKESHORE (143) | BK42: MUNICIPALITY OF MCCREARY (147) | BL42: RM OF ROSEDALE (170) | BM42: MUNICIPALITY OF WESTLAKE-GLADSTONE (200) | BN42: MUNICIPALITY OF STE. ROSE (359) | BO42: RM OF ALONSA (601) | BP42: 0 | BQ42: 0 | BR42: 0 | BS42: 0 | BT42: 0 | BU42: 0 | BV42: 0 | BW42: 0 | BX42: 0 | BY42: 0 | BZ42: 0 | CA42: 0 | CB42: 0 | CC42: 0 | CD42: 0 | CE42: 0 | DL42: 570454 | DM42: 196456 | DN42: 686734 | DO42: 327403 | DP42: 27844 | DQ42: 1132785 | DR42: 957662 | DS42: 0 | DT42: 0 | DU42: 0 | DV42: 0 | DW42: 0 | DX42: 0 | DY42: 0 | DZ42: 0 | EA42: 0 | EB42: 0 | EC42: 0 | ED42: 0 | EE42: 0 | EF42: 0 | EG42: 0 | FO42: 0 | FP42: 318570 | FQ42: TR | FS42: -3646155 | FT42: -3646155 | FU42: TR
F43: =MAX(F6:F42) -> 23 | G43: FL | H43: City of Flin Flon, Municip | I43: Dec 31 | AU43: W/O | AV43: WE | AW43: WESTERN | BA43: 12015200 | BB43: 0 | BC43: 0 | BD43: 0 | BE43: 582992 | BG43: 11432208 | BI43: MUNICIPALITY OF PEMBINA (161) | BJ43: RM OF ROLAND (169) | BK43: RM OF STANLEY (190) | BL43: RM OF THOMPSON (195) | BM43: CITY OF MORDEN (433) | BN43: 0 | BO43: 0 | BP43: 0 | BQ43: 0 | BR43: 0 | BS43: 0 | BT43: 0 | BU43: 0 | BV43: 0 | BW43: 0 | BX43: 0 | BY43: 0 | BZ43: 0 | CA43: 0 | CB43: 0 | CC43: 0 | CD43: 0 | CE43: 0 | DL43: 212019 | DM43: 81065 | DN43: 3051533 | DO43: 214376 | DP43: 7873214 | DQ43: 0 | DR43: 0 | DS43: 0 | DT43: 0 | DU43: 0 | DV43: 0 | DW43: 0 | DX43: 0 | DY43: 0 | DZ43: 0 | EA43: 0 | EB43: 0 | EC43: 0 | ED43: 0 | EE43: 0 | EF43: 0 | EG43: 0 | FO43: 1 | FP43: 582992 | FQ43: WE | FR43: No DSFM | FS43: -11432207 | FT43: -11432207 | FU43: WE
G44: FO | H44: Rm of Ellice-Archie | I44: Oct 31 | AV44: WI | AW44: WINNIPEG | AX44: 218404652 | AY44: 3309198 | AZ44: 841 | BA44: 221714691 | BB44: 0 | BC44: 4790198 | BD44: 4729813 | BE44: 12422614 | BF44: 179250 | BG44: 204322629 | BI44: City of Winnipeg | BJ44: 0 | BK44: 0 | BL44: 0 | BM44: 0 | BN44: 0 | BO44: 0 | BP44: 0 | BQ44: 0 | BR44: 0 | BS44: 0 | BT44: 0 | BU44: 0 | BV44: 0 | BW44: 0 | BX44: 0 | BY44: 0 | BZ44: 0 | CA44: 0 | CB44: 0 | CC44: 0 | CD44: 0 | CE44: 0 | DL44: 204322629 | DM44: 0 | DN44: 0 | DO44: 0 | DP44: 0 | DQ44: 0 | DR44: 0 | DS44: 0 | DT44: 0 | DU44: 0 | DV44: 0 | DW44: 0 | DX44: 0 | DY44: 0 | DZ44: 0 | EA44: 0 | EB44: 0 | EC44: 0 | ED44: 0 | EE44: 0 | EF44: 0 | EG44: 0 | FO44: =+BG44-SUM(DL44:FN44) -> 0 | FP44: 12422614 | FQ44: =+AV44 -> WI | FR44: ok 1 mun. | FS44: =IF(AND(FO44=0,FR44="No DSFM"),0,AY44-SUM(DL44:EH44)) -> -201013431 | FT44: =+AY44-SUM(DL44:EH44) -> -201013431 | FU44: =+AV44 -> WI
G45: FO | H45: Municipality of Two Borders | I45: Oct 31 | AV45: XW | AW45: WHITESHELL | BA45: 2800132 | BC45: 22588 | BD45: 22588 | BE45: 88370 | BG45: 2689174 | BI45: L.G.D. of Pinawa | BJ45: 0 | BK45: 0 | BL45: 0 | BM45: 0 | BN45: 0 | BO45: 0 | BP45: 0 | BQ45: 0 | BR45: 0 | BS45: 0 | BT45: 0 | BU45: 0 | BV45: 0 | BW45: 0 | BX45: 0 | BY45: 0 | BZ45: 0 | CA45: 0 | CB45: 0 | CC45: 0 | CD45: 0 | CE45: 0 | DL45: 2689174 | DM45: 0 | DN45: 0 | DO45: 0 | DP45: 0 | DQ45: 0 | DR45: 0 | DS45: 0 | DT45: 0 | DU45: 0 | DV45: 0 | DW45: 0 | DX45: 0 | DY45: 0 | DZ45: 0 | EA45: 0 | EB45: 0 | EC45: 0 | ED45: 0 | EE45: 0 | EF45: 0 | EG45: 0 | FO45: 0 | FP45: 12422614 | FQ45: XW | FR45: ok 1 mun. | FS45: -2689174 | FT45: -2689174 | FU45: XW
G46: FO | H46: R.M. of Pipestone | I46: Oct 31
G47: FO | H47: R.M. of Sifton | I47: Oct 31
G48: FO | H48: R.M. of Wallace-Woodworth | I48: Oct 29 | AV48: =IF(DIVNUM=1,0,VLOOKUP(DIVNUM2,$AV$9:$FN$45,AV1)) -> 0 | AW48: =IF(DIVNUM=1,0,VLOOKUP(DIVNUM2,$AV$9:$FN$45,AW1)) -> 0 | AX48: =IF(DIVNUM=1,0,VLOOKUP(DIVNUM2,$AV$9:$FN$45,AX1)) -> 0 | AY48: =IF(DIVNUM=1,0,VLOOKUP(DIVNUM2,$AV$9:$FN$45,AY1)) -> 0 | AZ48: =IF(DIVNUM=1,0,VLOOKUP(DIVNUM2,$AV$9:$FN$45,AZ1)) -> 0 | BA48: =IF(DIVNUM=1,0,VLOOKUP(DIVNUM2,$AV$9:$FN$45,BA1)) -> 0 | BB48: =IF(DIVNUM=1,0,VLOOKUP(DIVNUM2,$AV$9:$FN$45,BB1)) -> 0 | BC48: =IF(DIVNUM=1,0,VLOOKUP(DIVNUM2,$AV$9:$FN$45,BC1)) -> 0 | BD48: =IF(DIVNUM=1,0,VLOOKUP(DIVNUM2,$AV$9:$FN$45,BD1)) -> 0 | BE48: =IF(DIVNUM=1,0,VLOOKUP(DIVNUM2,$AV$9:$FN$45,BE1)) -> 0 | BF48: =IF(DIVNUM=1,0,VLOOKUP(DIVNUM2,$AV$9:$FN$45,BF1)) -> 0 | BG48: =IF(DIVNUM=1,0,VLOOKUP(DIVNUM2,$AV$9:$FN$45,BG1)) -> 0 | BI48: =IF(DIVNUM=1,0,VLOOKUP(DIVNUM2,$AV$9:$FN$45,BI1)) -> 0 | BJ48: =IF(DIVNUM=1,0,VLOOKUP(DIVNUM2,$AV$9:$FN$45,BJ1)) -> 0 | BK48: =IF(DIVNUM=1,0,VLOOKUP(DIVNUM2,$AV$9:$FN$45,BK1)) -> 0 | BL48: =IF(DIVNUM=1,0,VLOOKUP(DIVNUM2,$AV$9:$FN$45,BL1)) -> 0 | BM48: =IF(DIVNUM=1,0,VLOOKUP(DIVNUM2,$AV$9:$FN$45,BM1)) -> 0 | BN48: =IF(DIVNUM=1,0,VLOOKUP(DIVNUM2,$AV$9:$FN$45,BN1)) -> 0 | BO48: =IF(DIVNUM=1,0,VLOOKUP(DIVNUM2,$AV$9:$FN$45,BO1)) -> 0 | BP48: =IF(DIVNUM=1,0,VLOOKUP(DIVNUM2,$AV$9:$FN$45,BP1)) -> 0 | BQ48: =IF(DIVNUM=1,0,VLOOKUP(DIVNUM2,$AV$9:$FN$45,BQ1)) -> 0 | BR48: =IF(DIVNUM=1,0,VLOOKUP(DIVNUM2,$AV$9:$FN$45,BR1)) -> 0 | BS48: =IF(DIVNUM=1,0,VLOOKUP(DIVNUM2,$AV$9:$FN$45,BS1)) -> 0 | BT48: =IF(DIVNUM=1,0,VLOOKUP(DIVNUM2,$AV$9:$FN$45,BT1)) -> 0 | BU48: =IF(DIVNUM=1,0,VLOOKUP(DIVNUM2,$AV$9:$FN$45,BU1)) -> 0 | BV48: =IF(DIVNUM=1,0,VLOOKUP(DIVNUM2,$AV$9:$FN$45,BV1)) -> 0 | BW48: =IF(DIVNUM=1,0,VLOOKUP(DIVNUM2,$AV$9:$FN$45,BW1)) -> 0 | BX48: =IF(DIVNUM=1,0,VLOOKUP(DIVNUM2,$AV$9:$FN$45,BX1)) -> 0 | BY48: =IF(DIVNUM=1,0,VLOOKUP(DIVNUM2,$AV$9:$FN$45,BY1)) -> 0 | BZ48: =IF(DIVNUM=1,0,VLOOKUP(DIVNUM2,$AV$9:$FN$45,BZ1)) -> 0 | CA48: =IF(DIVNUM=1,0,VLOOKUP(DIVNUM2,$AV$9:$FN$45,CA1)) -> 0 | CB48: =IF(DIVNUM=1,0,VLOOKUP(DIVNUM2,$AV$9:$FN$45,CB1)) -> 0 | CC48: =IF(DIVNUM=1,0,VLOOKUP(DIVNUM2,$AV$9:$FN$45,CC1)) -> 0 | CD48: =IF(DIVNUM=1,0,VLOOKUP(DIVNUM2,$AV$9:$FN$45,CD1)) -> 0 | CE48: =IF(DIVNUM=1,0,VLOOKUP(DIVNUM2,$AV$9:$FN$45,CE1)) -> 0 | CF48: =IF(DIVNUM=1,0,VLOOKUP(DIVNUM2,$AV$9:$FN$45,CF1)) -> 0 | CG48: =IF(DIVNUM=1,0,VLOOKUP(DIVNUM2,$AV$9:$FN$45,CG1)) -> 0 | CH48: =IF(DIVNUM=1,0,VLOOKUP(DIVNUM2,$AV$9:$FN$45,CH1)) -> 0 | CI48: =IF(DIVNUM=1,0,VLOOKUP(DIVNUM2,$AV$9:$FN$45,CI1)) -> 0 | CJ48: =IF(DIVNUM=1,0,VLOOKUP(DIVNUM2,$AV$9:$FN$45,CJ1)) -> 0 | CK48: =IF(DIVNUM=1,0,VLOOKUP(DIVNUM2,$AV$9:$FN$45,CK1)) -> 0 | CL48: =IF(DIVNUM=1,0,VLOOKUP(DIVNUM2,$AV$9:$FN$45,CL1)) -> 0 | CM48: =IF(DIVNUM=1,0,VLOOKUP(DIVNUM2,$AV$9:$FN$45,CM1)) -> 0 | CN48: =IF(DIVNUM=1,0,VLOOKUP(DIVNUM2,$AV$9:$FN$45,CN1)) -> 0 | CO48: =IF(DIVNUM=1,0,VLOOKUP(DIVNUM2,$AV$9:$FN$45,CO1)) -> 0 | CP48: =IF(DIVNUM=1,0,VLOOKUP(DIVNUM2,$AV$9:$FN$45,CP1)) -> 0 | CQ48: =IF(DIVNUM=1,0,VLOOKUP(DIVNUM2,$AV$9:$FN$45,CQ1)) -> 0 | CR48: =IF(DIVNUM=1,0,VLOOKUP(DIVNUM2,$AV$9:$FN$45,CR1)) -> 0 | CS48: =IF(DIVNUM=1,0,VLOOKUP(DIVNUM2,$AV$9:$FN$45,CS1)) -> 0 | CT48: =IF(DIVNUM=1,0,VLOOKUP(DIVNUM2,$AV$9:$FN$45,CT1)) -> 0 | CU48: =IF(DIVNUM=1,0,VLOOKUP(DIVNUM2,$AV$9:$FN$45,CU1)) -> 0 | CV48: =IF(DIVNUM=1,0,VLOOKUP(DIVNUM2,$AV$9:$FN$45,CV1)) -> 0 | CW48: =IF(DIVNUM=1,0,VLOOKUP(DIVNUM2,$AV$9:$FN$45,CW1)) -> 0 | CX48: =IF(DIVNUM=1,0,VLOOKUP(DIVNUM2,$AV$9:$FN$45,CX1)) -> 0 | CY48: =IF(DIVNUM=1,0,VLOOKUP(DIVNUM2,$AV$9:$FN$45,CY1)) -> 0 | CZ48: =IF(DIVNUM=1,0,VLOOKUP(DIVNUM2,$AV$9:$FN$45,CZ1)) -> 0 | DA48: =IF(DIVNUM=1,0,VLOOKUP(DIVNUM2,$AV$9:$FN$45,DA1)) -> 0 | DB48: =IF(DIVNUM=1,0,VLOOKUP(DIVNUM2,$AV$9:$FN$45,DB1)) -> 0 | DC48: =IF(DIVNUM=1,0,VLOOKUP(DIVNUM2,$AV$9:$FN$45,DC1)) -> 0 | DD48: =IF(DIVNUM=1,0,VLOOKUP(DIVNUM2,$AV$9:$FN$45,DD1)) -> 0 | DE48: =IF(DIVNUM=1,0,VLOOKUP(DIVNUM2,$AV$9:$FN$45,DE1)) -> 0 | DF48: =IF(DIVNUM=1,0,VLOOKUP(DIVNUM2,$AV$9:$FN$45,DF1)) -> 0 | DG48: =IF(DIVNUM=1,0,VLOOKUP(DIVNUM2,$AV$9:$FN$45,DG1)) -> 0 | DH48: =IF(DIVNUM=1,0,VLOOKUP(DIVNUM2,$AV$9:$FN$45,DH1)) -> 0 | DI48: =IF(DIVNUM=1,0,VLOOKUP(DIVNUM2,$AV$9:$FN$45,DI1)) -> 0 | DJ48: =IF(DIVNUM=1,0,VLOOKUP(DIVNUM2,$AV$9:$FN$45,DJ1)) -> 0 | DK48: =IF(DIVNUM=1,0,VLOOKUP(DIVNUM2,$AV$9:$FN$45,DK1)) -> 0 | DL48: =IF(DIVNUM=1,0,VLOOKUP(DIVNUM2,$AV$9:$FN$45,DL1)) -> 0 | DM48: =IF(DIVNUM=1,0,VLOOKUP(DIVNUM2,$AV$9:$FN$45,DM1)) -> 0 | DN48: =IF(DIVNUM=1,0,VLOOKUP(DIVNUM2,$AV$9:$FN$45,DN1)) -> 0 | DO48: =IF(DIVNUM=1,0,VLOOKUP(DIVNUM2,$AV$9:$FN$45,DO1)) -> 0 | DP48: =IF(DIVNUM=1,0,VLOOKUP(DIVNUM2,$AV$9:$FN$45,DP1)) -> 0 | DQ48: =IF(DIVNUM=1,0,VLOOKUP(DIVNUM2,$AV$9:$FN$45,DQ1)) -> 0 | DR48: =IF(DIVNUM=1,0,VLOOKUP(DIVNUM2,$AV$9:$FN$45,DR1)) -> 0 | DS48: =IF(DIVNUM=1,0,VLOOKUP(DIVNUM2,$AV$9:$FN$45,DS1)) -> 0 | DT48: =IF(DIVNUM=1,0,VLOOKUP(DIVNUM2,$AV$9:$FN$45,DT1)) -> 0 | DU48: =IF(DIVNUM=1,0,VLOOKUP(DIVNUM2,$AV$9:$FN$45,DU1)) -> 0 | DV48: =IF(DIVNUM=1,0,VLOOKUP(DIVNUM2,$AV$9:$FN$45,DV1)) -> 0 | DW48: =IF(DIVNUM=1,0,VLOOKUP(DIVNUM2,$AV$9:$FN$45,DW1)) -> 0 | DX48: =IF(DIVNUM=1,0,VLOOKUP(DIVNUM2,$AV$9:$FN$45,DX1)) -> 0 | DY48: =IF(DIVNUM=1,0,VLOOKUP(DIVNUM2,$AV$9:$FN$45,DY1)) -> 0 | DZ48: =IF(DIVNUM=1,0,VLOOKUP(DIVNUM2,$AV$9:$FN$45,DZ1)) -> 0 | EA48: =IF(DIVNUM=1,0,VLOOKUP(DIVNUM2,$AV$9:$FN$45,EA1)) -> 0 | EB48: =IF(DIVNUM=1,0,VLOOKUP(DIVNUM2,$AV$9:$FN$45,EB1)) -> 0 | EC48: =IF(DIVNUM=1,0,VLOOKUP(DIVNUM2,$AV$9:$FN$45,EC1)) -> 0 | ED48: =IF(DIVNUM=1,0,VLOOKUP(DIVNUM2,$AV$9:$FN$45,ED1)) -> 0 | EE48: =IF(DIVNUM=1,0,VLOOKUP(DIVNUM2,$AV$9:$FN$45,EE1)) -> 0 | EF48: =IF(DIVNUM=1,0,VLOOKUP(DIVNUM2,$AV$9:$FN$45,EF1)) -> 0 | EG48: =IF(DIVNUM=1,0,VLOOKUP(DIVNUM2,$AV$9:$FN$45,EG1)) -> 0 | EH48: =IF(DIVNUM=1,0,VLOOKUP(DIVNUM2,$AV$9:$FN$45,EH1)) -> 0 | EI48: =IF(DIVNUM=1,0,VLOOKUP(DIVNUM2,$AV$9:$FN$45,EI1)) -> 0 | EJ48: =IF(DIVNUM=1,0,VLOOKUP(DIVNUM2,$AV$9:$FN$45,EJ1)) -> 0 | EK48: =IF(DIVNUM=1,0,VLOOKUP(DIVNUM2,$AV$9:$FN$45,EK1)) -> 0 | EL48: =IF(DIVNUM=1,0,VLOOKUP(DIVNUM2,$AV$9:$FN$45,EL1)) -> 0 | EM48: =IF(DIVNUM=1,0,VLOOKUP(DIVNUM2,$AV$9:$FN$45,EM1)) -> 0 | EN48: =IF(DIVNUM=1,0,VLOOKUP(DIVNUM2,$AV$9:$FN$45,EN1)) -> 0 | EO48: =IF(DIVNUM=1,0,VLOOKUP(DIVNUM2,$AV$9:$FN$45,EO1)) -> 0 | EP48: =IF(DIVNUM=1,0,VLOOKUP(DIVNUM2,$AV$9:$FN$45,EP1)) -> 0 | EQ48: =IF(DIVNUM=1,0,VLOOKUP(DIVNUM2,$AV$9:$FN$45,EQ1)) -> 0 | ER48: =IF(DIVNUM=1,0,VLOOKUP(DIVNUM2,$AV$9:$FN$45,ER1)) -> 0 | ES48: =IF(DIVNUM=1,0,VLOOKUP(DIVNUM2,$AV$9:$FN$45,ES1)) -> 0 | ET48: =IF(DIVNUM=1,0,VLOOKUP(DIVNUM2,$AV$9:$FN$45,ET1)) -> 0 | EU48: =IF(DIVNUM=1,0,VLOOKUP(DIVNUM2,$AV$9:$FN$45,EU1)) -> 0 | EV48: =IF(DIVNUM=1,0,VLOOKUP(DIVNUM2,$AV$9:$FN$45,EV1)) -> 0 | EW48: =IF(DIVNUM=1,0,VLOOKUP(DIVNUM2,$AV$9:$FN$45,EW1)) -> 0 | EX48: =IF(DIVNUM=1,0,VLOOKUP(DIVNUM2,$AV$9:$FN$45,EX1)) -> 0 | EY48: =IF(DIVNUM=1,0,VLOOKUP(DIVNUM2,$AV$9:$FN$45,EY1)) -> 0 | EZ48: =IF(DIVNUM=1,0,VLOOKUP(DIVNUM2,$AV$9:$FN$45,EZ1)) -> 0 | FA48: =IF(DIVNUM=1,0,VLOOKUP(DIVNUM2,$AV$9:$FN$45,FA1)) -> 0 | FB48: =IF(DIVNUM=1,0,VLOOKUP(DIVNUM2,$AV$9:$FN$45,FB1)) -> 0 | FC48: =IF(DIVNUM=1,0,VLOOKUP(DIVNUM2,$AV$9:$FN$45,FC1)) -> 0 | FD48: =IF(DIVNUM=1,0,VLOOKUP(DIVNUM2,$AV$9:$FN$45,FD1)) -> 0 | FE48: =IF(DIVNUM=1,0,VLOOKUP(DIVNUM2,$AV$9:$FN$45,FE1)) -> 0 | FF48: =IF(DIVNUM=1,0,VLOOKUP(DIVNUM2,$AV$9:$FN$45,FF1)) -> 0 | FG48: =IF(DIVNUM=1,0,VLOOKUP(DIVNUM2,$AV$9:$FN$45,FG1)) -> 0 | FH48: =IF(DIVNUM=1,0,VLOOKUP(DIVNUM2,$AV$9:$FN$45,FH1)) -> 0 | FI48: =IF(DIVNUM=1,0,VLOOKUP(DIVNUM2,$AV$9:$FN$45,FI1)) -> 0 | FJ48: =IF(DIVNUM=1,0,VLOOKUP(DIVNUM2,$AV$9:$FN$45,FJ1)) -> 0 | FK48: =IF(DIVNUM=1,0,VLOOKUP(DIVNUM2,$AV$9:$FN$45,FK1)) -> 0 | FL48: =IF(DIVNUM=1,0,VLOOKUP(DIVNUM2,$AV$9:$FN$45,FL1)) -> 0 | FM48: =IF(DIVNUM=1,0,VLOOKUP(DIVNUM2,$AV$9:$FN$45,FM1)) -> 0 | FN48: =IF(DIVNUM=1,0,VLOOKUP(DIVNUM2,$AV$9:$FN$45,FN1)) -> 0 | FO48: =IF(DIVNUM=1,0,VLOOKUP(DIVNUM2,$AV$9:$FO$45,FO1)) -> 0 | FP48: =IF(DIVNUM=1,0,VLOOKUP(DIVNUM2,$AV$9:$FP$45,FP1)) -> 0
G49: FO | H49: R.M. of Whitehead | I49: Oct 31 | BI49: =+DL48 -> 0 | BJ49: =+DM48 -> 0 | BK49: 0 | BL49: 0 | BM49: 0 | BN49: 0 | BO49: 0 | BP49: 0 | BQ49: 0 | BR49: 0 | BS49: 0 | BT49: 0 | BU49: 0 | BV49: 0 | BW49: 0 | BX49: 0 | BY49: 0 | BZ49: 0 | CA49: 0 | CB49: 0 | CC49: 0 | CD49: 0 | CE49: 0 | CF49: =+EI48 -> 0 | CG49: =+EJ48 -> 0 | CH49: =+EK48 -> 0 | CI49: =+EL48 -> 0 | CJ49: =+EM48 -> 0 | CK49: =+EN48 -> 0 | CL49: =+EO48 -> 0 | CM49: =+EP48 -> 0 | CN49: =+EQ48 -> 0 | CO49: =+ER48 -> 0 | CP49: =+ES48 -> 0 | CQ49: =+ET48 -> 0 | CR49: =+EU48 -> 0 | CS49: =+EV48 -> 0 | CT49: =+EW48 -> 0 | CU49: =+EX48 -> 0 | CV49: =+EY48 -> 0 | CW49: =+EZ48 -> 0 | CX49: =+FA48 -> 0 | CY49: =+FB48 -> 0 | CZ49: =+FC48 -> 0 | DA49: =+FD48 -> 0 | DB49: =+FE48 -> 0 | DC49: =+FF48 -> 0 | DD49: =+FG48 -> 0 | DE49: =+FH48 -> 0 | DF49: =+FI48 -> 0 | DG49: =+FJ48 -> 0 | DH49: =+FK48 -> 0 | DI49: =+FL48 -> 0 | DJ49: =+FM48 -> 0 | DK49: =+FN48 -> 0
G50: FO | H50: Town of Virden | I50: Oct 29 | DL50: =SUM(DL9:DL45) -> 285939554 | DM50: =SUM(DM9:DM45) -> 135490372 | DN50: =SUM(DN9:DN45) -> 464485454 | DO50: =SUM(DO9:DO45) -> 36603853 | DP50: =SUM(DP9:DP45) -> 60295656 | DQ50: =SUM(DQ9:DQ45) -> 39201130 | DR50: =SUM(DR9:DR45) -> 26465667 | DS50: =SUM(DS9:DS45) -> 33771631 | DT50: =SUM(DT9:DT45) -> 71585739 | DU50: =SUM(DU9:DU45) -> 13559843 | DV50: =SUM(DV9:DV45) -> 6623515 | DW50: =SUM(DW9:DW45) -> 3591946 | DX50: =SUM(DX9:DX45) -> 2483733 | DY50: =SUM(DY9:DY45) -> 2575674 | DZ50: =SUM(DZ9:DZ45) -> 18999 | EA50: =SUM(EA9:EA45) -> 1744994 | EB50: =SUM(EB9:EB45) -> 11112 | EC50: =SUM(EC9:EC45) -> 103078 | ED50: =SUM(ED9:ED45) -> 12048 | EE50: =SUM(EE9:EE45) -> 23837 | EF50: =SUM(EF9:EF45) -> 5986 | EG50: =SUM(EG9:EG45) -> 13926 | EH50: =SUM(EH9:EH45) -> 86072 | EI50: =SUM(EI9:EI45) -> 18865 | EJ50: =SUM(EJ9:EJ45) -> 5778 | EK50: =SUM(EK9:EK45) -> 61663 | EL50: =SUM(EL9:EL45) -> 1143 | EM50: =SUM(EM9:EM45) -> 36519 | EN50: =SUM(EN9:EN45) -> 54670 | EO50: =SUM(EO9:EO45) -> 15047 | EP50: =SUM(EP9:EP45) -> 5021 | EQ50: =SUM(EQ9:EQ45) -> 261 | ER50: =SUM(ER9:ER45) -> 3353 | ES50: =SUM(ES9:ES45) -> 1765 | ET50: =SUM(ET9:ET45) -> 13006 | EU50: =SUM(EU9:EU45) -> 115932 | EV50: =SUM(EV9:EV45) -> 27446 | EW50: =SUM(EW9:EW45) -> 3089 | EX50: =SUM(EX9:EX45) -> 6575 | EY50: =SUM(EY9:EY45) -> 17094 | EZ50: =SUM(EZ9:EZ45) -> 9258 | FA50: =SUM(FA9:FA45) -> 125716 | FB50: =SUM(FB9:FB45) -> 55187 | FC50: =SUM(FC9:FC45) -> 23412 | FD50: =SUM(FD9:FD45) -> 2347 | FE50: =SUM(FE9:FE45) -> 1000 | FF50: =SUM(FF9:FF45) -> 6337 | FG50: =SUM(FG9:FG45) -> 43531 | FH50: =SUM(FH9:FH45) -> 28195 | FI50: =SUM(FI9:FI45) -> 4193 | FJ50: =SUM(FJ9:FJ45) -> 23802 | FK50: =SUM(FK9:FK45) -> 6061 | FL50: =SUM(FL9:FL45) -> 781 | FM50: =SUM(FM9:FM45) -> 3847 | FN50: =SUM(FN9:FN45) -> 1247 | FO50: =SUM(FO9:FO45) -> -3 | FP50: =SUM(FP9:FP45) -> 75952901
G51: FR | H51: rm of lakeshore | I51: Oct 31
G52: FR | H52: town of leaf rapids | I52: Oct 31
G53: FR | H53: town of snow lake | I53: Aug 31
G54: FR | H54: rm of alonsa | I54: Oct 31
G55: FR | H55: town of churchill | I55: Oct 29
G56: FR | H56: rm of kelsey | I56: Nov 01
G57: FR | H57: rm of grahamdale | I57: Oct 31
G58: FR | H58: town of lynn lake | I58: Oct 31
G59: FR | H59: town of grand rapids | I59: Sep 30
G60: FR | H60: rm of mountain | I60: Sep 30
G61: FR | H61: town of gillam | I61: Oct 31
G62: FR | H62: indigenous and northern relations
G63: FR | H63: indigenous and northern relations
G64: FR | H64: indigenous and northern relations
G65: FR | H65: indigenous and northern relations
G66: FR | H66: incorporated community of cross lake
G67: FR | H67: incorporated community of seymourville
G68: FR | H68: norway house-northern affairs act
G69: FR | H69: pikwitonei-northern affairs act
G70: FR | H70: sherridon-northern affairs act
G71: FR | H71: incorporated community of south indian lake
G72: FR | H72: thicket portage-northern affairs act
G73: FR | H73: wabowden-northern affairs act
G74: GA | H74: municipality of rhineland | I74: Oct 29
G75: GA | H75: rm of roland | I75: Oct 29
G76: GA | H76: rm of stanley | I76: Oct 29
G77: GA | H77: city of winkler | I77: Aug 31
G78: IN | H78: rm of rockwood | I78: Oct 29
G79: IN | H79: rm of rosser | I79: Sep 30
G80: IN | H80: rm of st andrews | I80: Oct 31
G81: IN | H81: rm of st laurent | I81: Oct 31
G82: IN | H82: rm of west st paul | I82: Sep 30
G83: IN | H83: rm of woodlands | I83: Oct 31
G84: IN | H84: town of teulon | I84: Aug 31
G85: IN | H85: town of stonewall | I85: Sep 30
G86: IN | H86: city of winnipeg | I86: Jun 30
G87: IN | H87: rm of armstrong | I87: Oct 31
G88: HA | H88: R.M. of De Salaberry | I88: Oct 31
G89: HA | H89: Municipality of Emerson-Franklin | I89: Oct 31
G90: HA | H90: R.M. of Hanover | I90: Oct 29
G91: HA | H91: R.M. of La Broquerie | I91: Sep 30
G92: HA | H92: R.M. of Ritchot | I92: Oct 31
G93: HA | H93: R.M. of Ste. Anne | I93: Oct 29
G94: HA | H94: R.M. of Tache | I94: Nov 1
G95: HA | H95: Town of Niverville | I95: Sep 30
G96: HA | H96: City of Steinbach | I96: Sep 30
G97: KE | H97: Town of The Pas | I97: Aug 31
G98: KE | H98: R.M. of Kelsey | I98: Nov 1
G99: LA | H99: Municipality of Bifrost-Riverton | I99: Sep 30
G100: LA | H100: R.M. of Coldwell | I100: Sep 30
G101: LA | H101: R.M. of Rockwood | I101: Oct 29
G102: LA | H102: R.M. of St. Laurent | I102: Oct 31
G103: LA | H103: Municipality of West Interlake | I103: Oct 31
G104: LA | H104: R.M. of Armstrong | I104: Oct 31
G105: LA | H105: R.M. of Fisher | I105: Oct 31
G106: LA | H106: R.M. of Grahamdale | I106: Oct 31
G107: LO | H107: R.M. of Brokenhead | I107: Sep 30
G108: LO | H108: R.M. of St. Andrews | I108: Oct 31
G109: LO | H109: R.M. of St. Clements | I109: Oct 31
G110: LO | H110: R.M. of Victoria Beach | I110: Jul 31
G111: LO | H111: City of Selkirk | I111: Jul 30
G112: LO | H112: R.M. of Alexander | I112: Sep 1
G113: LR | H113: R.M. of Ritchot | I113: Oct 31
G114: LR | H114: R.M. of Springfield | I114: Oct 29
G115: LR | H115: City of Winnipeg | I115: Jun 30
G116: MO | H116: R.M. of Dauphin | I116: Oct 29
G117: MO | H117: Municipality of Ethelbert | I117: Oct 31
G118: MO | H118: Grandview Municipality | I118: Oct 31
G119: MO | H119: R.M. of Lakeshore | I119: Oct 31
G120: MO | H120: Municipality of McCreary | I120: Oct 31
G121: MO | H121: R.M. of Mossey River | I121: Oct 31
G122: MO | H122: R.M. of Riding Mountain West | I122: Oct 29
G123: MO | H123: Municipality of Hillsburg-Roblin-Shell River | I123: Oct 31
G124: MO | H124: Gilbert Plains Municipality | I124: Sep 30
G125: MO | H125: City of Dauphin | I125: Jul 30
G126: MO | H126: R.M. of Mountain | I126: Sep 30
G127: MY | H127: City of Thompson | I127: Sep 30
G128: PA | H128: R.M. of Ellice-Archie | I128: Oct 31
G129: PA | H129: R.M. of Oakview | I129: Oct 29
G130: PA | H130: R.M. of Riding Mountain West | I130: Oct 29
G131: PA | H131: R.M. of Yellowhead | I131: Oct 31
G132: PA | H132: R.M. of Wallace-Woodworth | I132: Oct 29
G133: PA | H133: Hamiota Municipality | I133: Oct 31
G134: PA | H134: Rossburn Municipality | I134: Oct 31
G135: PA | H135: Prairie View Municipality | I135: Oct 29
G136: PA | H136: Municipality of Russell-Binscarth | I136: Oct 29
G137: PA | H137: Municipality of Harrison Park | I137: Oct 29
G138: PE | H138: R.M. of Macdonald | I138: Sep 24
G139: PE | H139: R.M. of Headingley | I139: Sep 30
G140: PE | H140: City of Winnipeg | I140: Jun 30
G141: PI | H141: Municipality of Glenella-Lansdowne | I141: Oct 31
G142: PI | H142: Municipality of North Cypress-Langford | I142: Sep 30
G143: PI | H143: Municipality of North Norfolk | I143: Sep 30
G144: PI | H144: R.M. of Portage La Prairie | I144: Sep 30
G145: PI | H145: Municipality of Norfolk Treherne | I145: Oct 31
G146: PI | H146: R.M. of Victoria | I146: Oct 29
G147: PI | H147: Municipality of Westlake-Gladstone | I147: Oct 29
G148: PO | H148: R.M. of Grey | I148: Sep 30
G149: PO | H149: Municipality of North Norfolk | I149: Sep 30
G150: PO | H150: R.M. of Portage La Prairie | I150: Sep 30
G151: PO | H151: R.M. of St. Francois Xavier | I151: Sep 30
G152: PO | H152: Municipality of Norfolk Treherne | I152: Oct 31
G153: PO | H153: Municipality of Westlake-Gladstone | I153: Oct 29
G154: PO | H154: R.M. of Woodlands | I154: Oct 31
G155: PO | H155: City Portage la Prairie | I155: Jul 31
G156: PR | H156: R.M. of Cartier | I156: Sep 30
G157: PR | H157: R.M. of Dufferin | I157: Oct 29
G158: PR | H158: R.M. of Grey | I158: Sep 30
G159: PR | H159: Municipality of Lorne | I159: Oct 29
G160: PR | H160: R.M. of Macdonald | I160: Sep 24
G161: PR | H161: R.M. of Morris | I161: Oct 29
G162: PR | H162: Municipality of Pembina | I162: Oct 31
G163: PR | H163: R.M. of Portage La Prairie | I163: Sep 30
G164: PR | H164: R.M. of Roland | I164: Oct 29
G165: PR | H165: R.M. of St. Francois Xavier | I165: Sep 30
G166: PR | H166: R.M. of St. Laurent | I166: Oct 31
G167: PR | H167: Municipality of Norfolk Treherne | I167: Oct 31
G168: PR | H168: R.M. of Stanley | I168: Oct 29
G169: PR | H169: R.M. of Thompson | I169: Sep 30
G170: PR | H170: R.M. of Woodlands | I170: Oct 31
G171: PR | H171: Town of Carman | I171: Aug 31
G172: PS | H172: R.M. of Argyle | I172: Oct 31
G173: PS | H173: R.M. of Dufferin | I173: Oct 29
G174: PS | H174: R.M. of Grey | I174: Sep 30
G175: PS | H175: Municipality of Lorne | I175: Oct 29
G176: PS | H176: Municipality of Louise | I176: Oct 29
G177: PS | H177: Municipality of Pembina | I177: Oct 31
G178: PS | H178: R.M. of Portage La Prairie | I178: Sep 30
G179: PS | H179: Cartwright-Roblin Municipality | I179: Oct 31
G180: PS | H180: Municipality of Glenboro-South Cypress | I180: Oct 29
G181: PS | H181: Municipality of Norfolk Treherne | I181: Oct 31
G182: PS | H182: R.M. of Stanley | I182: Oct 29
G183: PS | H183: R.M. of Prairie Lakes | I183: Oct 31
G184: PS | H184: R.M. of Thompson | I184: Sep 30
G185: PS | H185: R.M. of Victoria | I185: Oct 29
G186: RE | H186: R.M. of Cartier | I186: Sep 30
G187: RE | H187: R.M. of De Salaberry | I187: Oct 31
G188: RE | H188: R.M. of Dufferin | I188: Oct 29
G189: RE | H189: Municipality of Emerson-Franklin | I189: Oct 31
G190: RE | H190: R.M. of Macdonald | I190: Sep 24
G191: RE | H191: R.M. of Montcalm | I191: Oct 31
G192: RE | H192: R.M. of Morris | I192: Oct 29
G193: RE | H193: Municipality of Rhineland | I193: Oct 29
G194: RE | H194: R.M. of Ritchot | I194: Oct 31
G195: RE | H195: R.M. of Roland | I195: Oct 29
G196: RE | H196: Village St. Pierre-Jolys | I196: Oct 31
G197: RE | H197: Town of Morris | I197: Sep 30
G198: RI | H198: R.M. of East St. Paul | I198: Sep 30
G199: RI | H199: R.M. of St. Clements | I199: Oct 31
G200: RI | H200: City of Winnipeg | I200: Jun 30
... 100 more rows

Sheet User Instructions
B1: WHO SHOULD USE THIS FORM
B3: School Divisions who have la Division scolaire franco-manitobaine (DSFM) pupils residing in their divisions should use this form to calculate DSFM's portion of Special Levy payments received from municipalities.
B7: Payment of the calculated amount from this form should be remitted to DSFM within five (5) working days as set out by the Public School Act Regulation 371/88 Section 3.1(1).
B11: WHAT THIS FORM DOES
A13: 1) | B13: This form calculates the percentage of the total Special Levy applicable to DSFM. The percentage calculated is applied to the Special Levy payments received from municipalities to arrive at the amount owing to DSFM for each remittance period.
A18: 2) | B18: The form can also serve as a working file to monitor all the remittances paid to DSFM per year and to monitor Special Levy receivable balances from each municipality.
A22: 3) | B22: If an entry exceeds the total sum, an error message appears and blocks the entry. Please re-enter the amounts to match the total levy. The formulas are visible in each cell.
B26: HOW TO USE THIS FORM
A28: 1) | B28: On the top left hand corner, select your School Division and preferred language.
A35: 2) | B35: When a school division is selected, the following fields are automatically populated, except "DSFM's share of EPTC (paid by Province)" and "DSFM's share of MSTR (paid by Province)". Please input the corresponding numbers for your division into these cells. All pre-entered data is taken from school divisions' submitted FRAME Budget files.
A51: 3) | B51: Tax due dates and Total Special Levy by Municipality as they appear in the Budget file ratio page are also pre-populated in when a school division is selected.
A54: 4) | B54: Enter the amount of EPTC by municipality (column E) to determine "Net Special Levy By Municipality" (column F). The EPTC by municipality is provided to School Divisions when they receive their EPTC payment(s) from the Province. The Manitoba School Tax Rebate (column F) should also be entered by municipality.
A61: 5) | B61: Enter payments made by municipalities in the remittance columns. Select the number of remittances (maximum of 12). The number of remittances may be increased as needed, and remittance dates may be entered (column B). Printing options are also provided. Before printing a copy to send to DSFM, select "French" for language as referenced in #1.

Sheet DATA ENTRY
A1: =IF(DIVNUM=1,"",VLOOKUP(DIVNUM,LOOKUPTABLE,2)) ->  | C1: =IF(A101=1,C116,C117) -> Calculation of Special Levy Remittances to la Division scolaire franco-manitobaine (DSFM) | Z1: 0 | AN1: 2 | AO1: =IF(DATA!$AI$7=0,1,DATA!$AI$7) -> 1 | AP1: =+AO1-1 -> 0
AO2: LETTER
C7: =IF($A$101=1,C110,C111) -> YEAR OF LEVY | D7: 2024
C9: =IF($A$101=1,C113,C114) -> SPECIAL LEVY BEFORE TIG (line J.) | D9: =+DATA!$BA$48 -> 0 | F9: Select the
C10: =IF($A$101=1,C119,C120) -> SPECIAL LEVY FOR DSFM (line H.) | D10: =+DATA!$AY$48 -> 0 | F10: number of
C11: =IF($A$101=1,C132,C133) -> ADJUSTMENT FOR DSFM (line I.) | D11: =+DATA!$AZ$48 -> 0 | F11: remittance(s):
C13: =IF($A$101=1,C128,C129) -> PERCENTAGE (%) OF TOTAL SPECIAL LEVY APPLICABLE TO DSFM | D13: =IF(DIVLEVY=0,"",ROUND((DSFMLEVY+DSFMADJ)/DIVLEVY,8)) -> 
C15: =IF($A$101=1,C122,C123) -> DSFM's share of EPTC (paid by Province) | D15: 0
C16: =IF($A$101=1,C123,C124) -> Part du CIFME de la DSFM (payée par la province) | D16: =+D63*D15 -> 0 | E16: 4 | F16: 4 | G16: 1 | H16: 2 | I16: 3 | J16: 4 | K16: 5 | L16: 6 | M16: 7 | N16: 8 | O16: 9 | P16: 10 | Q16: 11 | R16: 12
C18: =IF($A$101=1,C160,C161) -> TOTAL TIG (line L.) | D18: =DATA!BC48 -> 0
C19: =IF($A$101=1,C145,C146) -> DIVISION's share of TIG | D19: =DATA!BD48 -> 0
C20: =IF($A$101=1,C142,C143) -> DSFM's share of TIG (paid by Province) | D20: =D18-D19 -> 0 | F20: 4
C22: =IF($A$101=1,C148,C149) -> TOTAL PTOG (line M.) | D22: =D23+D24 -> 0
C23: =IF($A$101=1,C151,C152) -> DIVISON's share of PTOG (paid by Province) | D23: =DATA!BE48 -> 0
C24: =IF($A$101=1,C154,C155) -> DSFM's share of PTOG (paid by Province) | D24: =DATA!BF48 -> 0
C26: =IF($A$101=1,C157,C158) -> DSFM's share of MSTR (paid by Province) | D26: 0
C28: NET SPECIAL LEVY (line O.) | D28: =DIVLEVY-D18-D22 -> 0
C30: =IF($A$101=1,C139,C140) -> NET TO BE PAID TO DSFM | D30: =IF(D15="","",+DSFMLEVY+DSFMADJ-D15-D20-D24-D26) -> 0
A32: =IF($A$101=1,A104,A105) -> REMITTING AUTHORITY / MUNICIPALITY | B32: TAX DUE DATE | C32: TOTAL SPECIAL LEVY BY MUNICIPALITY | D32: Less: EDUCATION PROPERTY TAX CREDIT | E32: Less: MANITOBA SCHOOL TAX REBATE | F32: NET SPECIAL LEVY BY MUNICIPALITY | G32: =IF($AO$1=G16,IF($A$101=1,"AMOUNT COLLECTED","MONTANT PERÇU"),"") -> AMOUNT COLLECTED
G33: =IF($A$101=1,G101,G102) -> REMITTANCE 1 | H33: =IF($A$101=1,H101,H102) -> REMITTANCE 2 | I33: REMITTANCE 3 | J33: REMITTANCE 4 | K33: REMITTANCE 5 | L33: REMITTANCE 6 | M33: REMITTANCE 7 | N33: REMITTANCE 8 | O33: REMITTANCE 9 | P33: REMITTANCE 10 | Q33: REMITTANCE 11 | R33: REMITTANCE 12 | T33: =IF($A$101=1,FORM!G31,FORM!G32) -> YEAR TO DATE | U33: =IF($A$101=1,A115,A117) -> BALANCE TO
U34: =IF($A$101=1,A116,A118) -> COLLECT
A37: =+DATA!M294 ->  | B37: =IF(A37="","",DATA!R294) ->  | C37: =IF(DATA!$FO$48=1,(DATA!$AX$48-DATA!$BA$48-DATA!$FP$48),DATA!$Q$294)*0+DATA!$Q$294 -> 0 | F37: =+C37-D37-E37 -> 0 | T37: =SUM(MUN_1) -> 0 | U37: =+HOMEMUN-T37 -> 0
A38: =+DATA!M295 ->  | B38: =IF(A38="","",DATA!R295) ->  | C38: =+DATA!$Q$295 -> 0 | F38: =+C38-D38-E38 -> 0 | T38: =SUM(MUN_2) -> 0 | U38: =+F38-T38 -> 0
A39: =+DATA!M296 ->  | B39: =IF(A39="","",DATA!R296) ->  | C39: =+DATA!$Q$296 -> 0 | F39: =+C39-D39-E39 -> 0 | T39: =SUM(MUN_3) -> 0 | U39: 0
A40: =+DATA!M297 ->  | B40: =IF(A40="","",DATA!R297) ->  | C40: =+DATA!$Q$297 -> 0 | F40: 0 | T40: =SUM(MUN_4) -> 0 | U40: 0
A41: =+DATA!M298 ->  | B41: =IF(A41="","",DATA!R298) ->  | C41: =+DATA!$Q$298 -> 0 | F41: 0 | T41: =SUM(MUN_5) -> 0 | U41: 0
A42: =+DATA!M299 ->  | B42: =IF(A42="","",DATA!R299) ->  | C42: =+DATA!$Q$299 -> 0 | F42: 0 | T42: =SUM(MUN_6) -> 0 | U42: 0
A43: =+DATA!M300 ->  | B43: =IF(A43="","",DATA!R300) ->  | C43: =+DATA!$Q$300 -> 0 | F43: 0 | T43: =SUM(MUN_7) -> 0 | U43: 0
A44: =+DATA!M301 ->  | B44: =IF(A44="","",DATA!R301) ->  | C44: =+DATA!$Q$301 -> 0 | F44: 0 | T44: =SUM(MUN_8) -> 0 | U44: 0
A45: =+DATA!M302 ->  | B45: =IF(A45="","",DATA!R302) ->  | C45: =+DATA!$Q$302 -> 0 | F45: 0 | T45: =SUM(MUN_9) -> 0 | U45: 0
A46: =+DATA!M303 ->  | B46: =IF(A46="","",DATA!R303) ->  | C46: =+DATA!$Q$303 -> 0 | F46: 0 | T46: =SUM(MUN_10) -> 0 | U46: 0
A47: =+DATA!M304 ->  | B47: =IF(A47="","",DATA!R304) ->  | C47: =+DATA!$Q$304 -> 0 | F47: 0 | T47: =SUM(MUN_11) -> 0 | U47: 0
A48: =+DATA!M305 ->  | B48: =IF(A48="","",DATA!R305) ->  | C48: =+DATA!$Q$305 -> 0 | F48: 0 | T48: =SUM(MUN_12) -> 0 | U48: 0
A49: =+DATA!M306 ->  | B49: =IF(A49="","",DATA!R306) ->  | C49: =+DATA!$Q$306 -> 0 | F49: 0 | T49: =SUM(MUN_13) -> 0 | U49: 0
A50: =+DATA!M307 ->  | B50: =IF(A50="","",DATA!R307) ->  | C50: =+DATA!$Q$307 -> 0 | F50: 0 | T50: =SUM(MUN_14) -> 0 | U50: 0
A51: =+DATA!M308 ->  | B51: =IF(A51="","",DATA!R308) ->  | C51: =+DATA!$Q$308 -> 0 | F51: 0 | T51: =SUM(MUN_15) -> 0 | U51: 0
A52: =+DATA!M309 ->  | B52: =IF(A52="","",DATA!R309) ->  | C52: =+DATA!$Q$309 -> 0 | F52: 0 | T52: =SUM(MUN_16) -> 0 | U52: 0
A53: =+DATA!M310 ->  | B53: =IF(A53="","",DATA!R310) ->  | C53: =+DATA!$Q$310 -> 0 | F53: 0 | T53: =SUM(MUN_17) -> 0 | U53: 0
A54: =+DATA!M311 ->  | B54: =IF(A54="","",DATA!R311) ->  | C54: =+DATA!$Q$311 -> 0 | F54: 0 | T54: =SUM(MUN_18) -> 0 | U54: 0
A55: =+DATA!M312 ->  | B55: =IF(A55="","",DATA!R312) ->  | C55: =+DATA!$Q$312 -> 0 | F55: 0 | T55: =SUM(MUN_19) -> 0 | U55: 0
A56: =+DATA!M313 ->  | B56: =IF(A56="","",DATA!R313) ->  | C56: =+DATA!$Q$313 -> 0 | F56: 0 | T56: =SUM(MUN_20) -> 0 | U56: 0
A57: =+DATA!M314 ->  | B57: =IF(A57="","",DATA!R314) ->  | C57: =+DATA!$Q$314 -> 0 | F57: 0 | T57: =SUM(MUN_21) -> 0 | U57: 0
A58: =+DATA!M315 ->  | B58: =IF(A58="","",DATA!R315) ->  | C58: =+DATA!$Q$315 -> 0 | F58: 0 | T58: =SUM(MUN_22) -> 0 | U58: 0
A59: =+DATA!M316 ->  | B59: =IF(A59="","",DATA!R316) ->  | C59: =+DATA!$Q$316 -> 0 | F59: 0 | T59: =SUM(MUN_23) -> 0 | U59: 0
A60: =+DATA!M317 -> 0 | B60: =IF(A60="","",DATA!R317) -> 00:00:00 | C60: =+DATA!$Q$317 -> 0 | F60: 0 | T60: =SUM(G60:R60) -> 0 | U60: 0
A62: =IF(A101=1,A112,A113) -> TOTALS | C62: =SUM(C35:C60) -> 0 | D62: =SUM(D35:D60) -> 0 | F62: =SUM(F35:F60) -> 0 | G62: =SUM(G37:G60) -> 0 | H62: =SUM(H37:H60) -> 0 | I62: 0 | J62: 0 | K62: 0 | L62: 0 | M62: 0 | N62: 0 | O62: 0 | P62: 0 | Q62: 0 | R62: 0 | T62: =SUM(T37:T60) -> 0 | U62: =SUM(U37:U60) -> 0
A65: TOTAL SPECIAL LEVY EXCLUDING TIG & PTOG PAYMENT | F65: =F62 -> 0 | G65: =G62*F65/F62 ->  | H65: =IF($D$13="","",IF($F$66<>0,H62/$F62*$F$65,0)) ->  | N65: =IF($D$13="","",ROUND(+N62*$D$13,0)) ->  | T65: =SUM(G65:R65) ->  | U65: =+F65-T65 -> 
A66: DIVISION SHARE OF TOTAL SPECIAL LEVY | F66: =F65-F67 -> 0 | G66: =IF($D$13="","",IF($F$66<>0,G62/$F62*$F$66,0)) ->  | T66: =SUM(G66:R66) -> 0 | U66: 0
A67: =IF($A$101=1,B107,B108) -> AMOUNT REMITTED TO DSFM | F67: =D30 -> 0 | G67: =IF($D$13="","",IF($F$66<>0,G62/$F62*$F$67,0)) ->  | N67: =IF($D$13="","",N66+N65) ->  | T67: =SUM(G67:R67) -> 0 | U67: 0
G68: =IF(G16=DATA!$AI$7,"D","") ->  | H68: =IF(H16=DATA!$AI$7,"D","") ->  | I68: =IF(I16=DATA!$AI$7,"D","") ->  | J68: =IF(J16=DATA!$AI$7,"D","") ->  | K68: =IF(K16=DATA!$AI$5,"D","") ->  | L68: =IF(L16=DATA!$AI$5,"D","") ->  | M68: =IF(M16=DATA!$AI$5,"D","") ->  | N68: =IF(N16=DATA!$AI$5,"D","") ->  | O68: =IF(O16=DATA!$AI$5,"D","") ->  | P68: =IF(P16=DATA!$AI$5,"D","") ->  | Q68: =IF(Q16=DATA!$AI$5,"D","") ->  | R68: =IF(R16=DATA!$AI$5,"D","") -> 
G69: =IF($A$101=1,IF(G16=DATA!$AI$7,"Please remit to DSFM within five days.",""),IF(G16=DATA!$AI$7,"Veuillez remettre à la DSFM d’ici 5 jours. ","")) ->  | H69: =IF($A$101=1,IF(H16=DATA!$AI$7,"Please remit to DSFM within five days.",""),IF(H16=DATA!$AI$7,"Veuillez remettre à la DSFM d’ici 5 jours. ","")) ->  | I69: =IF($A$101=1,IF(I16=DATA!$AI$7,"Please remit to DSFM within five days.",""),IF(I16=DATA!$AI$7,"Veuillez remettre à la DSFM d’ici 5 jours. ","")) ->  | J69: =IF($A$101=1,IF(J16=DATA!$AI$7,"Please remit to DSFM within five days.",""),IF(J16=DATA!$AI$7,"Veuillez remettre à la DSFM d’ici 5 jours. ","")) ->  | K69: =IF($A$101=1,IF(K16=DATA!$AI$7,"Please remit to DSFM within five days.",""),IF(K16=DATA!$AI$7,"Veuillez remettre à la DSFM d’ici 5 jours.","")) ->  | L69: =IF($A$101=1,IF(L16=DATA!$AI$7,"Please remit to DSFM within five days.",""),IF(L16=DATA!$AI$7,"Veuillez remettre à la DSFM d’ici 5 jours. ","")) ->  | M69: =IF($A$101=1,IF(M16=DATA!$AI$7,"Please remit to DSFM within five days.",""),IF(M16=DATA!$AI$7,"Veuillez remettre à la DSFM d’ici 5 jours. ","")) ->  | N69: =IF($A$101=1,IF(N16=DATA!$AI$7,"Please remit to DSFM within five days.",""),IF(N16=DATA!$AI$7,"Veuillez remettre à la DSFM d’ici 5 jours. ","")) ->  | O69: =IF($A$101=1,IF(O16=DATA!$AI$7,"Please remit to DSFM within five days.",""),IF(O16=DATA!$AI$7,"Veuillez remettre à la DSFM d’ici 5 jours. ","")) ->  | P69: =IF($A$101=1,IF(P16=DATA!$AI$7,"Please remit to DSFM within five days.",""),IF(P16=DATA!$AI$7,"Veuillez remettre à la DSFM d’ici 5 jours. ","")) ->  | Q69: =IF($A$101=1,IF(Q16=DATA!$AI$7,"Please remit to DSFM within five days.",""),IF(Q16=DATA!$AI$7,"Veuillez remettre à la DSFM d’ici 5 jours. ","")) ->  | R69: =IF($A$101=1,IF(R16=DATA!$AI$7,"Please remit to DSFM within five days.",""),IF(R16=DATA!$AI$7,"Veuillez remettre à la DSFM d’ici 5 jours. ","")) -> 
G70: =IF(OR(G16=$AO$1,G16=$AP$1),1,"") -> 1
A72: Notes: | D72: Remarques :
A73: (1) Per Calculation of Special Levy submitted with annual budget | D73: (1) Selon le calcul de la taxe spéciale soumis avec le budget annuel
A74: (2) Portion of Special Levy (per Note 1) provided by the Province of Manitoba | D74: (2) Partie de la taxe spéciale (voir remarque 1) fournie par la province du Manitoba.
A76: I certify the above to be a true and correct statement. | D76: Je déclare vrais et exacts les renseignements ci-dessus.
A80: Date | D80: Secretary-treasurer / Secrétaire-trésorier
A101: =+DATA!AQ1 -> 1 | G101: REMITTANCE 1 | H101: REMITTANCE 2 | I101: REMITTANCE 3 | J101: REMITTANCE 4 | K101: REMITTANCE 5 | L101: REMITTANCE 6 | M101: REMITTANCE 7 | N101: REMITTANCE 8 | O101: REMITTANCE 9 | P101: REMITTANCE 10 | Q101: REMITTANCE 11 | R101: REMITTANCE 12
A102: =IF($A$101=1,"Please remit to DSFM within five days.","Veuillez remettre à la DSFM d’ici 5 jours.") -> Please remit to DSFM within five days. | G102: REMISE 1 | H102: REMISE 2 | I102: REMISE 3 | J102: REMISE 4 | K102: REMISE 5 | L102: REMISE 6 | M102: REMISE 7 | N102: REMISE 8 | O102: REMISE 9 | P102: REMISE 10 | Q102: REMISE 11 | R102: REMISE 12
A104: REMITTING AUTHORITY / MUNICIPALITY | B104: TAX DUE DATE | C104: TOTAL SPECIAL LEVY BY MUNICIPALITY | D104: Less: EDUCATION PROPERTY TAX CREDIT | E104: Less: MANITOBA SCHOOL TAX REBATE | F104: NET SPECIAL LEVY BY MUNICIPALITY
A105: MUNICIPALITÉ | B105: =+FORM!D42&" "&FORM!D43 -> ÉCHÉANCE DE LA TAXE | C105: TOTAL DE LA TAXE SPÉCIALE | D105: Moins: CRÉDIT D'IMPÔT FONCIER DU MANITOBA EN MATIÉRE D'ÉDUCATION | E105: Moins: REMISE DE TAXE SCHOLAIRE | F105: =+FORM!E42&" "&FORM!E43 -> MONTANT NET DE LA TAXE SPÉCIALE
B107: AMOUNT REMITTED TO DSFM
B108: MONTANT REMIS À DSFM
C110: YEAR OF LEVY
C111: ANNÉE DE LA TAXE
A112: TOTALS
A113: TOTAUX | C113: SPECIAL LEVY BEFORE TIG (line J.)
C114: TAXE SPÉCIALE (line J. from SL form)
A115: BALANCE TO
A116: COLLECT | C116: Calculation of Special Levy Remittances to la Division scolaire franco-manitobaine (DSFM)
A117: SOLDE | C117: Calcul de la taxe spéciale remise à la Division scolaire franco-manitobaine (DSFM)
A118: RECEVABLE
C119: SPECIAL LEVY FOR DSFM (line H.)
A120: Select the | C120: TAXE SPÉCIALE POUR LA DSFM (line H.)
A121: number of
A122: remittance(s). | C122: DSFM's share of EPTC (paid by Province)
A123: Sélectionnez | C123: Part du CIFME de la DSFM (payée par la province)
A124: le nombre
A125: de remises. | C125: EDUCATION PROPERTY TAX CREDIT (EPTC)
C126: CRÉDIT D'IMPÔT FONCIER DU MANITOBA POUR L'ÉDUCATION (EPTC)
C128: PERCENTAGE (%) OF TOTAL SPECIAL LEVY APPLICABLE TO DSFM
C129: POURCENTAGE (%) DU TOTAL DE LA TAXE SPÉCIALE
C132: ADJUSTMENT FOR DSFM (line I.)
C133: AJUSTEMENT POUR LA DSFM (line I.)
B136: TOTAL FOR DSFM CALCULATION (EXCLUDES EPTC)
B137: TOTAL POUR LE CALCUL DSFM (EXCLUT EPTC)
C139: NET TO BE PAID TO DSFM
C140: MONTANT NET À ÊTRE PAYÉ À LA DSFM
C142: DSFM's share of TIG (paid by Province)
C143: Part de l'incitatif fiscal de la DSFM (payée par la province)
C145: DIVISION's share of TIG
C146: Part de DIVISION de TIG (payée par la province)
C148: TOTAL PTOG (line M.)
C149: PTOG TOTAL (line M.)
C151: DIVISON's share of PTOG (paid by Province)
C152: Part de la DIVISION due PTOG (payée par la province)
C154: DSFM's share of PTOG (paid by Province)
C155: Part de DSFM du PTOG (payée par la province)
C157: DSFM's share of MSTR (paid by Province)
C158: Part de DSFM du MSTR (payée par la province)
C160: TOTAL TIG (line L.)
C161: TIG TOTAL (line L.)

Sheet FORM (hidden)
A2: Calculation of Amount Remitted to la Division scolaire franco-manitobaine
A3: Calcul du montant remis à la Division scolaire franco-manitobaine
A5: School Division: | C5: =IF(VLOOKUP(DIVNUM,LOOKUPTABLE,2)="Press arrow for your School Division >","",VLOOKUP(DIVNUM,LOOKUPTABLE,2)) -> 
A6: Division scolaire :
A8: Year of Levy: | C8: =LEVYYEAR -> 2024
A9: Année de la taxe :
A11: For the Period Ended: | D11: =+DATA!AI6 -> 00:00:00 | O11: PERCENTAGE IN BOX (C) IS FORMATTED TO DISPLAY ONLY 3 DECIMALS IN ORDER TO FIT THEIR RESPECTIVE FIELDS. THE ACTUAL UNROUNDED PERCENTAGE USED TO CALCULATE THE DSFM REMITTANCE ON THIS FORM IS SHOWN BELOW.
A12: Pour la période se terminant le :
A15: TOTAL SPECIAL LEVY / TOTAL DE LA TAXE SPÉCIALE | I15: =DIVLEVY -> 0 | L15: (1)
I17: (A)
A19: PORTION OF SPECIAL LEVY APPLICABLE TO LA DIVISION SCOLAIRE FRANCO-MANITOBAINE | I19: =DSFMLEVY+DSFMADJ -> 0 | L19: (1)
A20: QUOTE-PART DE LA TAXE SPÉCIALE ATTRIBUÉE À LA DIVISION SCOLAIRE FRANCO-MANITOBAINE
I21: (B)
A23: PERCENTAGE (%) OF TOTAL SPECIAL LEVY APPLICABLE TO LA DIVISION SCOLAIRE | I23: =IF(I15>0,(I19/I15),0) -> 0 | O23: =I23 -> 0
A24: FRANCO-MANITOBAINE : (B) ÷ (A) / POURCENTAGE (%) DU TOTAL DE LA TAXE SPÉCIALE
A25: ATTRIBUÉ À LA DIVISION SCOLAIRE FRANCO-MANITOBAINE : (B) ÷ (A) | I25: (C)
O26: THIS WILL ENSURE THE TOTAL OF REMITTANCES TO THE DSFM WILL MATCH THE AMOUNT (TOTAL OF LINES H. AND I.) CALCULATED ON YOUR SPECIAL LEVY FORM (ROUNDED TO THE NEAREST DOLLAR).
G28: AMOUNT COLLECTED / MONTANT PERÇU
I30: PRIOR PERIODS
A31: PROVINCE OF MANITOBA | E31: AMOUNT | G31: YEAR TO DATE | I31: PÉRIODES | L31: CURRENT PERIOD
A32: PROVINCE DU MANITOBA | E32: MONTANT | G32: À CE JOUR | I32: ANTÉRIEURES | L32: PÉRIODE COURANTE
E33: (2) | G33: (D) | I33: (E) | L33: (D) - (E)
A34: EDUCATION PROPERTY TAX CREDIT | E34: =DIVEPTC -> 0 | G34: =SUM('DATA ENTRY'!G35:R35) -> 0 | I34: =G34-L34 ->  | L34: =+DATA!AJ8 -> 
A35: CRÉDIT D'IMPÔT FONCIER DU MANITOBA POUR L'ÉDUCATION
A36: TAX INCENTIVE GRANT | E36: =DIVTIG ->  | G36: =SUM('DATA ENTRY'!G36:R36) -> 0 | I36: =G36-L36 ->  | L36: =+DATA!AJ9 -> 
A37: CRÉDIT D'IMPÔT FONCIER EN MATIÈRE D'ÉDUCATION
G39: AMOUNT COLLECTED / MONTANT PERÇU
D40: TAX DUE
D41: DATE | E41: NET SPECIAL LEVY | I41: PRIOR PERIODS
A42: MUNICIPALITY / MUNICIPALITÉ | D42: ÉCHÉANCE | E42: MONTANT NET DE | G42: YEAR TO DATE | I42: PÉRIODES | L42: CURRENT PERIOD
D43: DE LA TAXE | E43: LA TAXE SPÉCIALE | G43: À CE JOUR | I43: ANTÉRIEURES | L43: PÉRIODE COURANTE
G44: (D) | I44: (E) | L44: (D) - (E)
A45: =IF('DATA ENTRY'!A37=0,""," "&'DATA ENTRY'!A37) ->  | D45: ='DATA ENTRY'!B37 ->  | E45: =HOMEMUN -> 0 | G45: =SUM('DATA ENTRY'!G37:R37) -> 0 | I45: =G45-L45 ->  | L45: =+DATA!AJ10 -> 
A46: =IF('DATA ENTRY'!A38=0,""," "&'DATA ENTRY'!A38) ->  | D46: ='DATA ENTRY'!B38 ->  | E46: ='DATA ENTRY'!F38 -> 0 | G46: =SUM('DATA ENTRY'!G38:R38) -> 0 | I46: =G46-L46 ->  | L46: =+DATA!AJ11 -> 
A47: =IF('DATA ENTRY'!A39=0,""," "&'DATA ENTRY'!A39) ->  | D47: ='DATA ENTRY'!B39 ->  | E47: ='DATA ENTRY'!F39 -> 0 | G47: =SUM('DATA ENTRY'!G39:R39) -> 0 | I47: =G47-L47 ->  | L47: =+DATA!AJ12 -> 
A48: =IF('DATA ENTRY'!A40=0,""," "&'DATA ENTRY'!A40) ->  | D48: ='DATA ENTRY'!B40 ->  | E48: ='DATA ENTRY'!F40 -> 0 | G48: =SUM('DATA ENTRY'!G40:R40) -> 0 | L48: =+DATA!AJ13 -> 
A49: =IF('DATA ENTRY'!A41=0,""," "&'DATA ENTRY'!A41) ->  | D49: ='DATA ENTRY'!B41 ->  | E49: ='DATA ENTRY'!F41 -> 0 | G49: =SUM('DATA ENTRY'!G41:R41) -> 0 | L49: =+DATA!AJ14 -> 
A50: =IF('DATA ENTRY'!A42=0,""," "&'DATA ENTRY'!A42) ->  | D50: ='DATA ENTRY'!B42 ->  | E50: ='DATA ENTRY'!F42 -> 0 | G50: =SUM('DATA ENTRY'!G42:R42) -> 0 | L50: =+DATA!AJ15 -> 
A51: =IF('DATA ENTRY'!A43=0,""," "&'DATA ENTRY'!A43) ->  | D51: ='DATA ENTRY'!B43 ->  | E51: ='DATA ENTRY'!F43 -> 0 | G51: =SUM('DATA ENTRY'!G43:R43) -> 0 | L51: =+DATA!AJ16 -> 
A52: =IF('DATA ENTRY'!A44=0,""," "&'DATA ENTRY'!A44) ->  | D52: ='DATA ENTRY'!B44 ->  | E52: ='DATA ENTRY'!F44 -> 0 | G52: =SUM('DATA ENTRY'!G44:R44) -> 0 | L52: =+DATA!AJ17 -> 
A53: =IF('DATA ENTRY'!A45=0,""," "&'DATA ENTRY'!A45) ->  | D53: ='DATA ENTRY'!B45 ->  | E53: ='DATA ENTRY'!F45 -> 0 | G53: =SUM('DATA ENTRY'!G45:R45) -> 0 | L53: =+DATA!AJ18 -> 
A54: =IF('DATA ENTRY'!A46=0,""," "&'DATA ENTRY'!A46) ->  | D54: ='DATA ENTRY'!B46 ->  | E54: ='DATA ENTRY'!F46 -> 0 | G54: =SUM('DATA ENTRY'!G46:R46) -> 0 | L54: =+DATA!AJ19 -> 
A55: =IF('DATA ENTRY'!A47=0,""," "&'DATA ENTRY'!A47) ->  | D55: ='DATA ENTRY'!B47 ->  | E55: ='DATA ENTRY'!F47 -> 0 | G55: =SUM('DATA ENTRY'!G47:R47) -> 0 | L55: =+DATA!AJ20 -> 
A56: =IF('DATA ENTRY'!A48=0,""," "&'DATA ENTRY'!A48) ->  | D56: ='DATA ENTRY'!B48 ->  | E56: ='DATA ENTRY'!F48 -> 0 | G56: =SUM('DATA ENTRY'!G48:R48) -> 0 | L56: =+DATA!AJ21 -> 
A57: =IF('DATA ENTRY'!A49=0,""," "&'DATA ENTRY'!A49) ->  | D57: ='DATA ENTRY'!B49 ->  | E57: ='DATA ENTRY'!F49 -> 0 | G57: =SUM('DATA ENTRY'!G49:R49) -> 0 | L57: =+DATA!AJ22 -> 
A58: =IF('DATA ENTRY'!A50=0,""," "&'DATA ENTRY'!A50) ->  | D58: ='DATA ENTRY'!B50 ->  | E58: ='DATA ENTRY'!F50 -> 0 | G58: =SUM('DATA ENTRY'!G50:R50) -> 0 | L58: =+DATA!AJ23 -> 
A59: =IF('DATA ENTRY'!A51=0,""," "&'DATA ENTRY'!A51) ->  | D59: ='DATA ENTRY'!B51 ->  | E59: ='DATA ENTRY'!F51 -> 0 | G59: =SUM('DATA ENTRY'!G51:R51) -> 0 | L59: =+DATA!AJ24 -> 
A60: =IF('DATA ENTRY'!A52=0,""," "&'DATA ENTRY'!A52) ->  | D60: ='DATA ENTRY'!B52 ->  | E60: ='DATA ENTRY'!F52 -> 0 | G60: =SUM('DATA ENTRY'!G52:R52) -> 0 | L60: =+DATA!AJ25 -> 
A61: =IF('DATA ENTRY'!A53=0,""," "&'DATA ENTRY'!A53) ->  | D61: ='DATA ENTRY'!B53 ->  | E61: ='DATA ENTRY'!F53 -> 0 | G61: =SUM('DATA ENTRY'!G53:R53) -> 0 | I61: =G61-L61 ->  | L61: =+DATA!AJ26 -> 
A62: =IF('DATA ENTRY'!A54=0,""," "&'DATA ENTRY'!A54) ->  | D62: ='DATA ENTRY'!B54 ->  | E62: ='DATA ENTRY'!F54 -> 0 | G62: =SUM('DATA ENTRY'!G54:R54) -> 0 | L62: =+DATA!AJ27 -> 
A63: =IF('DATA ENTRY'!A55=0,""," "&'DATA ENTRY'!A55) ->  | D63: ='DATA ENTRY'!B55 ->  | E63: ='DATA ENTRY'!F55 -> 0 | G63: =SUM('DATA ENTRY'!G55:R55) -> 0 | L63: =+DATA!AJ28 -> 
A64: =IF('DATA ENTRY'!A56=0,""," "&'DATA ENTRY'!A56) ->  | D64: ='DATA ENTRY'!B56 ->  | E64: ='DATA ENTRY'!F56 -> 0 | G64: =SUM('DATA ENTRY'!G56:R56) -> 0 | L64: =+DATA!AJ29 -> 
A65: =IF('DATA ENTRY'!A57=0,""," "&'DATA ENTRY'!A57) ->  | D65: ='DATA ENTRY'!B57 ->  | E65: ='DATA ENTRY'!F57 -> 0 | G65: =SUM('DATA ENTRY'!G57:R57) -> 0 | L65: =+DATA!AJ30 -> 
A66: =IF('DATA ENTRY'!A58=0,""," "&'DATA ENTRY'!A58) ->  | D66: ='DATA ENTRY'!B58 ->  | E66: ='DATA ENTRY'!F58 -> 0 | G66: =SUM('DATA ENTRY'!G58:R58) -> 0 | L66: =+DATA!AJ31 -> 
A67: =IF('DATA ENTRY'!A59=0,""," "&'DATA ENTRY'!A59) ->  | D67: ='DATA ENTRY'!B59 ->  | E67: ='DATA ENTRY'!F59 -> 0 | G67: =SUM('DATA ENTRY'!G59:R59) -> 0 | L67: =+DATA!AJ32 -> 
A68: TOTAL MUNICIPALITIES | E68: =SUM(E45:F67) -> 0 | G68: =SUM(G45:H67) -> 0 | I68: =SUM(I45:K67) ->  | L68: =SUM(L45:M67) -> 
A69: TOTAL POUR LES MUNICIPALITÉS
A71: GRAND TOTAL / TOTAL GÉNÉRAL | E71: =E34+E36+E68 ->  | G71: =G34+G36+G68 -> 0 | I71: =+I34+I36+I68 ->  | L71: =L34+L36+L68 -> 
E72: AMOUNT (A) | L72: (F)
E73: MONTANT (A)
A75: AMOUNT REMITTED TO LA DIVISION SCOLAIRE | F75: =I23 -> 0 | G75: X | H75: =L71 ->  | J75: = | K75: =ROUND(F75*H75,0) ->  | O75: < REMITTANCE IS ROUNDED TO NEAREST DOLLAR.
A76: FRANCO-MANITOBAINE / MONTANT REMIS À LA DIVISION
A77: SCOLAIRE FRANCO-MANITOBAINE
B79: YEAR TO DATE | C79: =ROUND(G71*F75,0) -> 0 | F79: (C) | H79: (F) | K79: REMITTANCE
B80: À CE JOUR | K80: REMISE
A83: Notes: | G83: Remarques :
A84: (1) Per Calculation of Special Levy submitted with annual budget | G84: (1) Selon le calcul de la taxe spéciale soumis avec le budget annuel
A85: (2) Portion of Special Levy (per Note 1) provided by the Province of Manitoba | G85: (2) Partie de la taxe spéciale (voir remarque 1) fournie par la province
G86: du Manitoba
A87: I certify the above to be a true and correct statement. / Je déclare vrais et exacts les renseignements ci-dessus.
A88: =IF(DATE_ON_OFF=1,NOW(),IF(DATE_ON_OFF=2,"",DATE_ENTRY)) -> 
A89: Date | D89: Secretary-treasurer / Secrétaire-trésorier
A91: c.c. : Division scolaire franco-manitobaine
A92: School Division / Division scolaire
A93: This form is available on the Internet at: / La présente formule est disponible sur Internet : http://www.edu.gov.mb.ca/k12/finance/forms/index.html
A95: Form 2/Formule 2

Sheet Changes (hidden)
B2: Changes in
B3: Data Entry Sheet
A4: 1 | B4: added a row of TOTAL in Row 42
A5: 2 | B5: added 2 columns (Column M of YEAR TO DATE COLLECTION and column N of BALANCE TO COLLECT)
A6: 3 | B6: In Column D 17: D 40 there is a Hide messege of Error (If the sum of the amounts in the PERIODS Cells is/are bigger than the TOTAL)
A7: 4 | B7: Maked the EPTC and the TIG the same way as the other entries.
A8: 5 | B8: There is no needed to put Zero before the amounts in the AMOUNTS COLLECTED the formula works no matter.
A9: 6 | B9: The TIG in the row 16 it fills automatically
A10: 7 | B10: Added 2 columns for Special Levy and EPTC
B13: Changes in
B14: Form Sheet
A15: 1 | B15: Changed the formula en Column L ( Current Period, no there is no needed to put Zero en the AMOUNTS COLLECTED )
A16: 2 | B16: Changed the Rows 34 and 36 (the EPTC and the TIG the same way as the other entries )
A17: 3 | B17: Changed the formula in Cell L71 as the same of the other's of the Grand Total.
A18: 4 | B18: Changed the formula in Cell D11 so they can bring me the date of the current period.
